{"text_format":"3","workbook":"xlsx","n_sheets":6,"sheets":["Partner adatok","Jármű vagy telephely adatok","Berendezés adatok","Listák","Kitöltési útmutató","Eq_par"],"not_rendered":{"images":1,"external_links":1,"defined_names":26,"comments":3},"read":"whole","date_system":"1900"}

{"sheet":"Partner adatok","index":0,"n_rows":57,"n_cols":4,"rows_kept":57,"merged":[[0,1,0,3],[2,0,15,0],[3,2,3,3],[4,2,4,3],[5,2,5,3],[6,2,6,3],[7,2,7,3],[8,2,8,3],[9,2,9,3],[10,2,10,3],[11,2,11,3],[12,2,12,3],[13,2,13,3],[14,2,14,3],[15,2,15,3],[16,0,29,0],[18,2,18,3],[19,2,19,3],[20,2,20,3],[21,2,21,3],[22,2,22,3],[23,2,23,3],[24,2,24,3],[25,2,25,3],[26,2,26,3],[27,2,27,3],[28,2,28,3],[29,2,29,3],[30,0,36,0],[32,2,32,3],[33,2,33,3],[34,2,34,3],[35,2,35,3],[36,2,36,3],[37,0,47,0],[38,2,38,3],[39,2,39,3],[40,2,40,3],[41,2,41,3],[42,2,42,3],[43,2,43,3],[44,2,44,3],[46,2,46,3],[47,2,47,3],[49,2,49,3],[52,1,52,2],[54,2,54,3]]}
[null,"Partner adatok"]
[]
["Engedélyes","Partnerkód: (ha ismert)",null,"Kérem válasszon!"]
[null,"Neve"]
[null,{"$f":"IF(D3=\"Természetes személy\",\"Állandó lakcím:\",\"Székhely címe:\")","v":"Székhely címe:"}]
[null,"Levélcíme"]
[null,"Értesítési címe"]
[null,"Értesítési levélcíme"]
[null,"Bankszámlaszám:"]
[null,"Frekvenciam díjkedvezmény ok","Nem vagyok jogosult"]
[null,{"$f":"IF($D3=\"Természetes személy\",\"Adóazonosító jele:\",\"Adószáma:\")","v":"Adószáma:"}]
[null,"Születéskori név:"]
[null,"Anyja neve"]
[null,"Születés ideje"]
[null,"Születés országa"]
[null,"Születés helye"]
["Díjfizető","A díjfizető:","Kérem válasszon!"]
[null,"Partnerkód: (ha ismert)",{"$f":"IF(OR($C$17=\"Másik személy\",$C$17=\"Kérem válasszon!\"),\"\",C3)","v":""},{"$f":"IF(OR($C$17=\"Másik személy\",$C$17=\"Kérem válasszon!\"),\"Kérem válasszon!\",D3)","v":"Kérem válasszon!"}]
[null,"Neve",""]
[null,{"$f":"IF(D18=\"Természetes személy\",\"Állandó lakcím:\",\"Székhely címe:\")","v":"Székhely címe:"},""]
[null,"Levélcíme",""]
[null,"Értesítési címe",""]
[null,"Értesítési levélcíme",""]
[null,"Bankszámlaszám:",""]
[null,{"$f":"IF(D18=\"Természetes személy\",\"Adóazonosító jele:\",\"Adószáma:\")","v":"Adószáma:"},{"$f":"IF(OR($C$17=\"Másik személy\",$C$17=\"Kérem válasszon!\"),\"\",C11)","v":""}]
[null,"Születéskori név:",{"$f":"IF(OR($C$17=\"Másik személy\",$C$17=\"Kérem válasszon!\"),\"\",C13)","v":""}]
[null,"Anyja neve"]
[null,"Születés ideje"]
[null,"Születés országa",{"$f":"IF(OR($C$17=\"Másik személy\",$C$17=\"Kérem válasszon!\"),\"\",C15)","v":""}]
[null,"Születés helye",{"$f":"IF(OR($C$17=\"Másik személy\",$C$17=\"Kérem válasszon!\"),\"\",C16)","v":""}]
["Üzemeltető","Az üzemeltető","Kérem válasszon!"]
[null,"Partnerkód: (ha ismert)",{"$f":"IF($C$31=\"Az engedélyes\",C3,IF($C$31=\"A díjfizető\",$C18,\"\"))","v":""}]
[null,"Neve:",""]
[null,"Székhely, vagy állandó lakcíme",""]
[null,"Levélcíme",""]
[null,"Értesítési címe",""]
[null,"Értesítési levélcíme",""]
["Kérelem benyújtója","A kérelem benyújtója","Kérem válasszon!"]
[null,"Név vagy cégnév",{"$f":"IF($C$38=\"Az engedélyes\",C4,IF($C$38=\"A díjfizető\",$C19,IF($C$38=\"Az üzemeltető\",$C33,\"\")))","v":""}]
[null,"Címe",{"$f":"IF($C$38=\"Az engedélyes\",C5,IF($C$38=\"A díjfizető\",$C20,IF($C$38=\"Az üzemeltető\",$C34,\"\")))","v":""}]
[null,"Értesítési levélcíme",{"$f":"IF($C$38=\"Az engedélyes\",C6,IF($C$38=\"A díjfizető\",$C21,IF($C$38=\"Az üzemeltető\",$C35,\"\")))","v":""}]
[null,"Ügyintéző neve",{"$f":"IF(AND(C38=\"Az engedélyes\",D3=\"Természetes személy\"),C4,IF(AND(C38=\"Díjfizető\",D18=\"Természetes személy\"),C19,\"\"))","v":""}]
[null,"Telefonja"]
[null,"E-mail címe"]
[null,"Kérelem azonosítója"]
[null,"Határozat átvételének módja","Kérem válasszon!"]
[null,"Eljárási megbízás","Kérem válasszon!"]
[null,"Kérelemmel érintett hívójelek, vagy telephelyek",{"$f":"IF(Listák!C52<>\"0\",Listák!C52,\"\")","v":""}]
[]
[null,"Megjegyzés: "]
[]
[null,"Nyilatkozat"]
[null,"Helyt adó határozat esetén fellebbezési jogomról lemondok",null,"Kérem válasszon!"]
[]
[null,"Megjegyzés:"]
[]
["Kelt:","Budapest,","dátum"]

{"sheet":"Jármű vagy telephely adatok","index":1,"n_rows":37,"n_cols":11,"rows_kept":37,"merged":[[0,2,0,4],[0,5,0,8],[0,9,0,10],[1,6,1,8],[2,6,2,8],[3,6,3,8],[4,6,4,8],[5,6,5,8],[6,6,6,8],[7,6,7,8],[8,6,8,8],[9,6,9,8],[10,6,10,8],[11,6,11,8],[12,6,12,8],[13,6,13,8],[14,6,14,8],[15,6,15,8],[16,6,16,8],[17,6,17,8],[18,6,18,8],[19,6,19,8],[20,6,20,8],[21,6,21,8],[22,6,22,8],[23,6,23,8],[24,6,24,8],[25,6,25,8],[26,6,26,8],[27,0,28,0],[27,2,28,2],[27,3,27,5],[27,7,27,8],[27,9,27,10],[28,3,28,4],[29,3,29,4],[30,3,30,4],[31,3,31,4],[32,3,32,4],[33,3,33,4],[34,0,34,1],[34,2,34,7],[36,1,36,2],[36,3,36,4]]}
[null,"Engedélyes neve:",{"$f":"IF('Partner adatok'!C4=\"\",\"\",'Partner adatok'!C4)","v":""},null,null,"Többségi, vagy kijelölt tulajdonos",{"$nulls":3},"Az évi időszakos üzemeltetés időszaka"]
["No","Hívójel","A változás","A jármű típusa","Lajstrom jele","Neve","Címe:",null,null,"Kezdete","Vége"]
[1,"Hívójel","Kérem válassza ki!"]
[2,"Hívójel","Kérem válassza ki!"]
[3,"Hívójel","Kérem válassza ki!"]
[4,"Hívójel","Kérem válassza ki!"]
[5,"Hívójel","Kérem válassza ki!"]
[6,"Hívójel","Kérem válassza ki!"]
[7,"Hívójel","Kérem válassza ki!"]
[8,"Hívójel","Kérem válassza ki!"]
[9,"Hívójel","Kérem válassza ki!"]
[10,"Hívójel","Kérem válassza ki!"]
[11,"Hívójel","Kérem válassza ki!"]
[12,"Hívójel","Kérem válassza ki!"]
[13,"Hívójel","Kérem válassza ki!"]
[14,"Hívójel","Kérem válassza ki!"]
[15,"Hívójel","Kérem válassza ki!"]
[16,"Hívójel","Kérem válassza ki!"]
[17,"Hívójel","Kérem válassza ki!"]
[18,"Hívójel","Kérem válassza ki!"]
[19,"Hívójel","Kérem válassza ki!"]
[20,"Hívójel","Kérem válassza ki!"]
[21,"Hívójel","Kérem válassza ki!"]
[22,"Hívójel","Kérem válassza ki!"]
[23,"Hívójel","Kérem válassza ki!"]
[24,"Hívójel","Kérem válassza ki!"]
[25,"Hívójel","Kérem válassza ki!"]
["Fix állomás",null,"Változás","Címe",null,null,"Tengerszint\nfeletti","Koordináták",null,"Az évi időszakos üzemeltetés időszaka"]
[null,"Állomásnév",null,"Helység",null,"közterület név, házszám","magasság\n (m)","EOV y","EOVx","Kezdete","Vége"]
[1,"Állomásnév","Kérem válassza ki!"]
[2,"Állomásnév","Kérem válassza ki!"]
[3,"Állomásnév","Kérem válassza ki!"]
[4,"Állomásnév","Kérem válassza ki!"]
[5,"Állomásnév","Kérem válassza ki!"]
["Megjegyzés:",{"$nulls":7},{"$f":"IF(C35=\"\",\"\",\"még\")","v":""},{"$f":"IF(C35=\"\",\"\",150-LEN(C35))","v":""}]
[]
["Kelt:",{"$f":"IF('Partner adatok'!B57<>0,'Partner adatok'!B57,\"\")","v":"Budapest,"},null,{"$f":"IF('Partner adatok'!C57<>0,'Partner adatok'!C57,\"\")","v":"dátum"}]

{"sheet":"Berendezés adatok","index":2,"n_rows":137,"n_cols":38,"rows_kept":137,"merged":[[1,2,1,7],[1,27,1,37],[2,27,3,27],[2,28,2,35],[2,36,2,37],[135,0,135,1],[135,2,135,13],[136,2,136,3]]}
[]
[null,"Engedélyes",{"$f":"IF('Partner adatok'!C4<>0,'Partner adatok'!C4,\"\")","v":""},{"$nulls":24},"Földi állandóhelyű állomás sugárzási jellemzői"]
[{"$nulls":27},"Hívónév","Atnenna",{"$nulls":7},"Napi üzemidő"]
["No","Hívójel\nvagy\nÁllomás név","Változás","Állomás \nosztály","Jellege","Üzembe \nhelyzés\n ideje","Rádióberendezés\nTípus","Gyártó","TSO vagy ETSO szám:","Használat \nmódja","Kategória","Rendeltetés","Névleges\nTeljesít-\nménye\n(W)","Engedélyezendő\nfrekvenciasáv","Adásmód","TX_1\n(MHz)","Adásmód_1","Rx_1\n(MHz)","TX_2\n(MHz)","Adásmód_2","Rx_2\n(MHz)","Tx_3\n(MHz)","Adásmód_3","Rx_3\n(MHz)","TX_4\n(MHz)","Adásmód_4","Rx_4\n(MHz)",null,"típus","Gyártó","Fh\n(m)","G\n(dB)","Irány\n(o)","ERP \n(W)","ERP\n(dBW)","Ellátási\nsugár\nkm","kezd","vége"]
[1,null,{"$f":"IF(OR(B5=\"Hívójel\",B5=\"Hívónév\",B5=\"\"),\"\",\"Kérem válassza ki!\")","v":""},{"$f":"IF(OR(B5=\"Hívójel\",B5=\"Hívónév\",B5=\"\"),\"\",IF(LEFT(B5,2)=\"HA\",\"MA\",\"FA\"))","v":""},{"$f":"IF(OR(B5=\"Hívójel\",B5=\"Hívónév\",B5=\"\"),\"\",\"Üzemelő\")","v":""},null,null,{"$f":"IFERROR(IF(G5=\"\",\"\",IF(VLOOKUP($G5,Berendezések1,2,FALSE)=0,\"\",VLOOKUP($G5,Berendezések1,2,FALSE))),\"\")","v":""},{"$f":"IFERROR(IF(G5<>\"\",VLOOKUP($G5,Berendezések1,3,FALSE),\"\"),\"\")","v":""},{"$f":"IFERROR(IF(AND(G5<>\"\",OR(I5=\"*\",I5=\"\")),\"Kérem válasszon!\",IF(G5<>\"\",VLOOKUP($G5,Berendezések1,11,FALSE),\"\")),\"\")","v":""},{"$f":"IFERROR(IF(G5<>\"\",VLOOKUP($G5,Berendezések1,10,FALSE),\"\"),\"\")","v":""},{"$f":"IFERROR(IF(G5=\"\",\"\",VLOOKUP($G5,Berendezések1,9,FALSE)),\"Kérem válassza ki!\")","v":""},{"$f":"IFERROR(IF(G5<>\"\",VLOOKUP($G5,Berendezések1,7,FALSE),\"\"),\"\")","v":""},{"$f":"IFERROR(IF(G5<>\"\",IF(VLOOKUP($G5,Berendezések1,4,FALSE)<>0,VLOOKUP($G5,Berendezések1,4,FALSE),\"\"),\"\"),\"\")","v":""},{"$f":"IFERROR(IF(G5<>\"\",IF(AND(VLOOKUP($G5,Berendezések1,8,FALSE)<>0,VLOOKUP($G5,Berendezések1,4,FALSE)<>0),VLOOKUP($G5,Berendezések1,8,FALSE),\"\"),\"\"),\"\")","v":""},{"$f":"IFERROR(IF(G5=\"\",\"\",IF(VLOOKUP($G5,Berendezések1,5,FALSE)=0,\"\",VLOOKUP($G5,Berendezések1,5,FALSE))),\"\")","v":""},{"$f":"IFERROR(IF(G5<>\"\",IF(AND(VLOOKUP($G5,Berendezések1,5,FALSE)<>0,VLOOKUP($G5,Berendezések1,8,FALSE)<>0),VLOOKUP($G5,Berendezések1,8,FALSE),\"\"),\"\"),\"\")","v":""},{"$f":"IFERROR(IF(G5<>\"\",IF(VLOOKUP($G5,Berendezések1,6,FALSE)<>0,VLOOKUP($G5,Berendezések1,6,FALSE),\"\"),\"\"),\"\")","v":""},{"$f":"IFERROR(IF(G5=\"\",\"\",IF(VLOOKUP($G5,Berendezések1,12,FALSE)=0,\"\",VLOOKUP($G5,Berendezések1,12,FALSE))),\"\")","v":""},{"$f":"IFERROR(IF(G5=\"\",\"\",IF(VLOOKUP($G5,Berendezések1,13,FALSE)=0,\"\",VLOOKUP($G5,Berendezések1,13,FALSE))),\"\")","v":""},null,{"$f":"IFERROR(IF(G5=\"\",\"\",IF(VLOOKUP($G5,Berendezések1,14,FALSE)=0,\"\",VLOOKUP($G5,Berendezések1,14,FALSE))),\"\")","v":""},{"$f":"IFERROR(IF(G5=\"\",\"\",IF(VLOOKUP($G5,Berendezések1,15,FALSE)=0,\"\",VLOOKUP($G5,Berendezések1,15,FALSE))),\"\")","v":""},{"$nulls":10},{"$f":"IF(AI5<>\"\",POWER(10,AI5/10),\"\")","v":""},{"$f":"IF(AND(M5<>\"\",AF5<>\"\"),AF5+10*LOG10(M5),\"\")","v":""}]
[2,null,"",{"$f":"IF(OR(B6=\"Hívójel\",B6=\"Hívónév\",B6=\"\"),\"\",IF(LEFT(B6,2)=\"HA\",\"MA\",\"FA\"))","v":""},{"$f":"IF(OR(B6=\"Hívójel\",B6=\"Hívónév\",B6=\"\"),\"\",\"Üzemelő\")","v":""},null,null,{"$f":"IFERROR(IF(G6=\"\",\"\",IF(VLOOKUP($G6,Berendezések1,2,FALSE)=0,\"\",VLOOKUP($G6,Berendezések1,2,FALSE))),\"\")","v":""},{"$f":"IFERROR(IF(G6<>\"\",VLOOKUP($G6,Berendezések1,3,FALSE),\"\"),\"\")","v":""},"","",{"$f":"IFERROR(IF(G6<>\"\",VLOOKUP($G6,Berendezések1,9,FALSE),\"\"),\"\")","v":""},"",{"$f":"IFERROR(IF(G6<>\"\",IF(VLOOKUP($G6,Berendezések1,4,FALSE)<>0,VLOOKUP($G6,Berendezések1,4,FALSE),\"\"),\"\"),\"\")","v":""},"","","","","","",null,"","",{"$nulls":10},{"$f":"IF(AI6<>\"\",POWER(10,AI6/10),\"\")","v":""},""]
[3,null,"","","",null,null,"","","","","","","","","","","","","",null,"","",{"$nulls":10},"",""]
[4,null,null,"","",null,null,"","","","","","","","","","","","","",null,"","",{"$nulls":10},"",""]
[5,null,"","","",null,null,"","","","","","","","","","","","","",null,"","",{"$nulls":10},"",""]
[6,null,"","","",null,null,"","","","","","","","","","","","","",null,"","",{"$nulls":10},"",""]
[7,null,"","","",null,null,"","","","","","","","","","","","","",null,"","",{"$nulls":10},"",""]
[8,null,"","","",null,null,"","","","","","","","","","","","","",null,"","",{"$nulls":10},"",""]
[9,null,"","","",null,null,"","","","","","","","","","","","","",null,"","",{"$nulls":10},"",""]
[10,null,"","","",null,null,"","","","","","","","","","","","","",null,"","",{"$nulls":10},"",""]
[11,null,"","","",null,null,"","","","","","","","","","","","","",null,"","",{"$nulls":10},"",""]
[12,null,"","","",null,null,"","","","","","","","","","","","","",null,"","",{"$nulls":10},"",""]
[13,null,"","","",null,null,"","","","","","","","","","","","","",null,"","",{"$nulls":10},"",""]
[14,null,"","","",null,null,"","","","","","","","","","","","","",null,"","",{"$nulls":10},"",""]
[15,null,"","","",null,null,"","","","","","","","","","","","","",null,"","",{"$nulls":10},"",""]
[16,null,"","","",null,null,"","","","","","","","","","","","","",null,"","",{"$nulls":10},"",""]
[17,null,"","","",null,null,"","","","","","","","","","","","","",null,"","",{"$nulls":10},"",""]
[18,null,"","","",null,null,"","","","","","","","","","","","","",null,"","",{"$nulls":10},"",""]
[19,null,"","","",null,null,"","","","","","","","","","","","","",null,"","",{"$nulls":10},"",""]
[20,null,"","","",null,null,"","","","","","","","","","","","","",null,"","",{"$nulls":10},"",""]
[21,null,"","","",null,null,"","","","","","","","","","","","","",null,"","",{"$nulls":10},"",""]
[22,null,"","","",null,null,"","","","","","","","","","","","","",null,"","",{"$nulls":10},"",""]
[23,null,"","","",null,null,"","","","","","","","","","","","","",null,"","",{"$nulls":10},"",""]
[24,null,"","","",null,null,"","","","","","","","","","","","","",null,"","",{"$nulls":10},"",""]
[25,null,"","","",null,null,"","","","","","","","","","","","","",null,"","",{"$nulls":10},"",""]
[26,null,"","","",null,null,"","","","","","","","","","","","","",null,"","",{"$nulls":10},"",""]
[27,null,"","","",null,null,"","","","","","","","","","","","","",null,"","",{"$nulls":10},"",""]
[28,null,"","","",null,null,"","","","","","","","","","","","","",null,"","",{"$nulls":10},"",""]
[29,null,"","","",null,null,"","","","","","","","","","","","","",null,"","",{"$nulls":10},"",""]
[30,null,"","","",null,null,"","","","","","","","","","","","","",null,"","",{"$nulls":10},"",""]
[31,null,"","","",null,null,"","","","","","","","","","","","","",null,"","",{"$nulls":10},"",""]
[32,null,"","","",null,null,"","","","","","","","","","","","","",null,"","",{"$nulls":10},"",""]
[33,null,"","","",null,null,"","",{"$f":"IFERROR(IF(AND(G37<>\"\",OR(I37=\"*\",I37=\"\")),\"Kérem válasszon!\",IF(G37<>\"\",VLOOKUP($G37,Berendezések1,11,FALSE),\"\")),\"\")","v":""},"","",{"$f":"IFERROR(IF(G37<>\"\",VLOOKUP($G37,Berendezések1,7,FALSE),\"\"),\"\")","v":""},{"$f":"IFERROR(IF(G37<>\"\",IF(VLOOKUP($G37,Berendezések1,4,FALSE)<>0,VLOOKUP($G37,Berendezések1,4,FALSE),\"\"),\"\"),\"\")","v":""},{"$f":"IFERROR(IF(G37<>\"\",IF(AND(VLOOKUP($G37,Berendezések1,8,FALSE)<>0,VLOOKUP($G37,Berendezések1,4,FALSE)<>0),VLOOKUP($G37,Berendezések1,8,FALSE),\"\"),\"\"),\"\")","v":""},{"$f":"IFERROR(IF(G37=\"\",\"\",IF(VLOOKUP($G37,Berendezések1,5,FALSE)=0,\"\",VLOOKUP($G37,Berendezések1,5,FALSE))),\"\")","v":""},{"$f":"IFERROR(IF(G37<>\"\",IF(AND(VLOOKUP($G37,Berendezések1,5,FALSE)<>0,VLOOKUP($G37,Berendezések1,8,FALSE)<>0),VLOOKUP($G37,Berendezések1,8,FALSE),\"\"),\"\"),\"\")","v":""},{"$f":"IFERROR(IF(G37<>\"\",IF(VLOOKUP($G37,Berendezések1,6,FALSE)<>0,VLOOKUP($G37,Berendezések1,6,FALSE),\"\"),\"\"),\"\")","v":""},{"$f":"IFERROR(IF(G37=\"\",\"\",IF(VLOOKUP($G37,Berendezések1,12,FALSE)=0,\"\",VLOOKUP($G37,Berendezések1,12,FALSE))),\"\")","v":""},{"$f":"IFERROR(IF(G37=\"\",\"\",IF(VLOOKUP($G37,Berendezések1,13,FALSE)=0,\"\",VLOOKUP($G37,Berendezések1,13,FALSE))),\"\")","v":""},null,{"$f":"IFERROR(IF(G37=\"\",\"\",IF(VLOOKUP($G37,Berendezések1,14,FALSE)=0,\"\",VLOOKUP($G37,Berendezések1,14,FALSE))),\"\")","v":""},{"$f":"IFERROR(IF(G37=\"\",\"\",IF(VLOOKUP($G37,Berendezések1,15,FALSE)=0,\"\",VLOOKUP($G37,Berendezések1,15,FALSE))),\"\")","v":""},{"$nulls":10},"",{"$f":"IF(AND(M37<>\"\",AF37<>\"\"),AF37+10*LOG10(M37),\"\")","v":""}]
[34,null,"","","",null,null,"","","",{"$f":"IFERROR(IF(G38<>\"\",VLOOKUP($G38,Berendezések1,10,FALSE),\"\"),\"\")","v":""},{"$f":"IFERROR(IF(G38<>\"\",VLOOKUP($G38,Berendezések1,9,FALSE),\"\"),\"\")","v":""},"","","","","","","","",null,"","",{"$nulls":10},"",""]
[35,null,"","","",null,null,"","","","","","","","","","","","","",null,"","",{"$nulls":10},"",""]
[36,null,"","","",null,null,"","","","","","","","","","","","","",null,"","",{"$nulls":10},"",""]
[37,null,"","","",null,null,"","","","","","","","","","","","","",null,"","",{"$nulls":10},"",""]
[38,null,"","","",null,null,"","","","","","","","","","","","","",null,"","",{"$nulls":10},"",""]
[39,null,"","","",null,null,"","","","","","","","","","","","","",null,"","",{"$nulls":10},"",""]
[40,null,"","","",null,null,"","","","","","","","","","","","","",null,"","",{"$nulls":10},"",""]
[41,null,"","","",null,null,"","","","","","","","","","","","","",null,"","",{"$nulls":10},"",""]
[42,null,"","","",null,null,"","","","","","","","","","","","","",null,"","",{"$nulls":10},"",""]
[43,null,"","","",null,null,"","","","","","","","","","","","","",null,"","",{"$nulls":10},"",""]
[44,null,"","","",null,null,"","","","","","","","","","","","","",null,"","",{"$nulls":10},"",""]
[45,null,"","","",null,null,"","","","","","","","","","","","","",null,"","",{"$nulls":10},"",""]
[46,null,"","","",null,null,"","","","","","","","","","","","","",null,"","",{"$nulls":10},"",""]
[47,null,"","","",null,null,"","","","","","","","","","","","","",null,"","",{"$nulls":10},"",""]
[48,null,"","","",null,null,"","","","","","","","","","","","","",null,"","",{"$nulls":10},"",""]
[49,null,"","","",null,null,"","","","","","","","","","","","","",null,"","",{"$nulls":10},"",""]
[50,null,"","","",null,null,"","","","","","","","","","","","","",null,"","",{"$nulls":10},"",""]
[51,null,"","","",null,null,"","","","","","","","","","","","","",null,"","",{"$nulls":10},"",""]
[52,null,"","","",null,null,"","","","","","","","","","","","","",null,"","",{"$nulls":10},"",""]
[53,null,"","","",null,null,"","","","","","","","","","","","","",null,"","",{"$nulls":10},"",""]
[54,null,"","","",null,null,"","","","","","","","","","","","","",null,"","",{"$nulls":10},"",""]
[55,null,"","","",null,null,"","","","","","","","","","","","","",null,"","",{"$nulls":10},"",""]
[56,null,"","","",null,null,"","","","","","","","","","","","","",null,"","",{"$nulls":10},"",""]
[57,null,"","","",null,null,"","","","","","","","","","","","","",null,"","",{"$nulls":10},"",""]
[58,null,"","","",null,null,"","","","","","","","","","","","","",null,"","",{"$nulls":10},"",""]
[59,null,"","","",null,null,"","","","","","","","","","","","","",null,"","",{"$nulls":10},"",""]
[60,null,"","","",null,null,"","","","","","","","","","","","","",null,"","",{"$nulls":10},"",""]
[61,null,"","","",null,null,"","","","","","","","","","","","","",null,"","",{"$nulls":10},"",""]
[62,null,"","","",null,null,"","","","","","","","","","","","","",null,"","",{"$nulls":10},"",""]
[63,null,"","","",null,null,"","","","","","","","","","","","","",null,"","",{"$nulls":10},"",""]
[64,null,"","","",null,null,"","","","","","","","","","","","","",null,"","",{"$nulls":10},"",""]
[65,null,{"$f":"IF(OR(B69=\"Hívójel\",B69=\"Hívónév\",B69=\"\"),\"\",\"Kérem válassza ki!\")","v":""},"","",null,null,"","",{"$f":"IFERROR(IF(AND(G69<>\"\",OR(I69=\"*\",I69=\"\")),\"Kérem válasszon!\",IF(G69<>\"\",VLOOKUP($G69,Berendezések1,11,FALSE),\"\")),\"\")","v":""},"","",{"$f":"IFERROR(IF(G69<>\"\",VLOOKUP($G69,Berendezések1,7,FALSE),\"\"),\"\")","v":""},{"$f":"IFERROR(IF(G69<>\"\",IF(VLOOKUP($G69,Berendezések1,4,FALSE)<>0,VLOOKUP($G69,Berendezések1,4,FALSE),\"\"),\"\"),\"\")","v":""},{"$f":"IFERROR(IF(G69<>\"\",IF(AND(VLOOKUP($G69,Berendezések1,8,FALSE)<>0,VLOOKUP($G69,Berendezések1,4,FALSE)<>0),VLOOKUP($G69,Berendezések1,8,FALSE),\"\"),\"\"),\"\")","v":""},{"$f":"IFERROR(IF(G69=\"\",\"\",IF(VLOOKUP($G69,Berendezések1,5,FALSE)=0,\"\",VLOOKUP($G69,Berendezések1,5,FALSE))),\"\")","v":""},{"$f":"IFERROR(IF(G69<>\"\",IF(AND(VLOOKUP($G69,Berendezések1,5,FALSE)<>0,VLOOKUP($G69,Berendezések1,8,FALSE)<>0),VLOOKUP($G69,Berendezések1,8,FALSE),\"\"),\"\"),\"\")","v":""},{"$f":"IFERROR(IF(G69<>\"\",IF(VLOOKUP($G69,Berendezések1,6,FALSE)<>0,VLOOKUP($G69,Berendezések1,6,FALSE),\"\"),\"\"),\"\")","v":""},{"$f":"IFERROR(IF(G69=\"\",\"\",IF(VLOOKUP($G69,Berendezések1,12,FALSE)=0,\"\",VLOOKUP($G69,Berendezések1,12,FALSE))),\"\")","v":""},{"$f":"IFERROR(IF(G69=\"\",\"\",IF(VLOOKUP($G69,Berendezések1,13,FALSE)=0,\"\",VLOOKUP($G69,Berendezések1,13,FALSE))),\"\")","v":""},null,{"$f":"IFERROR(IF(G69=\"\",\"\",IF(VLOOKUP($G69,Berendezések1,14,FALSE)=0,\"\",VLOOKUP($G69,Berendezések1,14,FALSE))),\"\")","v":""},{"$f":"IFERROR(IF(G69=\"\",\"\",IF(VLOOKUP($G69,Berendezések1,15,FALSE)=0,\"\",VLOOKUP($G69,Berendezések1,15,FALSE))),\"\")","v":""},{"$nulls":10},"",{"$f":"IF(AND(M69<>\"\",AF69<>\"\"),AF69+10*LOG10(M69),\"\")","v":""}]
[66,null,"",{"$f":"IF(OR(B70=\"Hívójel\",B70=\"Hívónév\",B70=\"\"),\"\",IF(LEFT(B70,2)=\"HA\",\"MA\",\"FA\"))","v":""},{"$f":"IF(OR(B70=\"Hívójel\",B70=\"Hívónév\",B70=\"\"),\"\",\"Üzemelő\")","v":""},null,null,{"$f":"IFERROR(IF(G70=\"\",\"\",IF(VLOOKUP($G70,Berendezések1,2,FALSE)=0,\"\",VLOOKUP($G70,Berendezések1,2,FALSE))),\"\")","v":""},{"$f":"IFERROR(IF(G70<>\"\",VLOOKUP($G70,Berendezések1,3,FALSE),\"\"),\"\")","v":""},"",{"$f":"IFERROR(IF(G70<>\"\",VLOOKUP($G70,Berendezések1,10,FALSE),\"\"),\"\")","v":""},{"$f":"IFERROR(IF(G70<>\"\",VLOOKUP($G70,Berendezések1,9,FALSE),\"\"),\"\")","v":""},"","","","","","","","",null,"","",{"$nulls":10},{"$f":"IF(AI70<>\"\",POWER(10,AI70/10),\"\")","v":""},""]
[67,null,"","","",null,null,"","","","","","","","","","","","","",null,"","",{"$nulls":10},"",""]
[68,null,"","","",null,null,"","","","","","","","","","","","","",null,"","",{"$nulls":10},"",""]
[69,null,"","","",null,null,"","","","","","","","","","","","","",null,"","",{"$nulls":10},"",""]
[70,null,"","","",null,null,"","","","","","","","","","","","","",null,"","",{"$nulls":10},"",""]
[71,null,"","","",null,null,"","","","","","","","","","","","","",null,"","",{"$nulls":10},"",""]
[72,null,{"$f":"IF(OR(B76=\"Hívójel\",B76=\"Hívónév\",B76=\"\"),\"\",\"Kérem válassza ki!\")","v":""},"","",null,null,"",{"$f":"IFERROR(IF(G76<>\"\",VLOOKUP($G76,Berendezések1,3,FALSE),\"\"),\"\")","v":""},"","","","","","","","","","","",null,"","",{"$nulls":10},"",""]
[73,null,{"$f":"IF(OR(B77=\"Hívójel\",B77=\"Hívónév\",B77=\"\"),\"\",\"Kérem válassza ki\")","v":""},"","",null,null,"","","","","","","","","","","","","",null,"","",{"$nulls":10},"",""]
[74,null,"","","",null,null,"","","","","","","","","","","","","",null,"","",{"$nulls":10},"",""]
[75,null,"","","",null,null,"","","","","","","","","","","","","",null,"","",{"$nulls":10},"",""]
[76,null,"","","",null,null,"","","","","","","","","","","","","",null,"","",{"$nulls":10},"",""]
[77,null,"","","",null,null,"","","","","","","","","","","","","",null,"","",{"$nulls":10},"",""]
[78,null,"","","",null,null,"","","","","","","","","","","","","",null,"","",{"$nulls":10},"",""]
[79,null,"","","",null,null,"","","","","","","","","","","","","",null,"","",{"$nulls":10},"",""]
[80,null,"","","",null,null,"","","","","","","","","","","","","",null,"","",{"$nulls":10},"",""]
[81,null,"","","",null,null,"","","","","","","","","","","","","",null,"","",{"$nulls":10},"",""]
[82,null,"","","",null,null,"","","","","","","","","","","","","",null,"","",{"$nulls":10},"",""]
[83,null,"","","",null,null,"","","","","","","","","","","","","",null,"","",{"$nulls":10},"",""]
[84,null,"","","",null,null,"","","","","","","","","","","","","",null,"","",{"$nulls":10},"",""]
[85,null,"","","",null,null,"","","","","","","","","","","","","",null,"","",{"$nulls":10},"",""]
[86,null,"","","",null,null,"","","","","","","","","","","","","",null,"","",{"$nulls":10},"",""]
[87,null,"","","",null,null,"","","","","","","","","","","","","",null,"","",{"$nulls":10},"",""]
[88,null,"","","",null,null,"","","","","","","","","","","","","",null,"","",{"$nulls":10},"",""]
[89,null,"","","",null,null,"","","","","","","","","","","","","",null,"","",{"$nulls":10},"",""]
[90,null,"","","",null,null,"","","","","",null,"","","","","","","",null,"","",{"$nulls":10},"",""]
[91,null,"","","",null,null,"","","","","","","","","","","","","",null,"","",{"$nulls":10},"",""]
[92,null,"","","",null,null,"","","","","","","","","","","","","",null,"","",{"$nulls":10},"",""]
[93,null,"","","",null,null,"","","","","","","","","","","","","",null,"","",{"$nulls":10},"",""]
[94,null,"","","",null,null,"","","","","","","","","","","","","",null,"","",{"$nulls":10},"",""]
[95,null,"","","",null,null,"","","","","","","","","","","","","",null,"","",{"$nulls":10},"",""]
[96,null,"","","",null,null,"","","","","","","","","","","","","",null,"","",{"$nulls":10},"",""]
[97,null,"","","",null,null,"","",{"$f":"IFERROR(IF(AND(G101<>\"\",OR(I101=\"*\",I101=\"\")),\"Kérem válasszon!\",IF(G101<>\"\",VLOOKUP($G101,Berendezések1,11,FALSE),\"\")),\"\")","v":""},"","",{"$f":"IFERROR(IF(G101<>\"\",VLOOKUP($G101,Berendezések1,7,FALSE),\"\"),\"\")","v":""},{"$f":"IFERROR(IF(G101<>\"\",IF(VLOOKUP($G101,Berendezések1,4,FALSE)<>0,VLOOKUP($G101,Berendezések1,4,FALSE),\"\"),\"\"),\"\")","v":""},{"$f":"IFERROR(IF(G101<>\"\",IF(AND(VLOOKUP($G101,Berendezések1,8,FALSE)<>0,VLOOKUP($G101,Berendezések1,4,FALSE)<>0),VLOOKUP($G101,Berendezések1,8,FALSE),\"\"),\"\"),\"\")","v":""},{"$f":"IFERROR(IF(G101=\"\",\"\",IF(VLOOKUP($G101,Berendezések1,5,FALSE)=0,\"\",VLOOKUP($G101,Berendezések1,5,FALSE))),\"\")","v":""},{"$f":"IFERROR(IF(G101<>\"\",IF(AND(VLOOKUP($G101,Berendezések1,5,FALSE)<>0,VLOOKUP($G101,Berendezések1,8,FALSE)<>0),VLOOKUP($G101,Berendezések1,8,FALSE),\"\"),\"\"),\"\")","v":""},{"$f":"IFERROR(IF(G101<>\"\",IF(VLOOKUP($G101,Berendezések1,6,FALSE)<>0,VLOOKUP($G101,Berendezések1,6,FALSE),\"\"),\"\"),\"\")","v":""},{"$f":"IFERROR(IF(G101=\"\",\"\",IF(VLOOKUP($G101,Berendezések1,12,FALSE)=0,\"\",VLOOKUP($G101,Berendezések1,12,FALSE))),\"\")","v":""},{"$f":"IFERROR(IF(G101=\"\",\"\",IF(VLOOKUP($G101,Berendezések1,13,FALSE)=0,\"\",VLOOKUP($G101,Berendezések1,13,FALSE))),\"\")","v":""},null,{"$f":"IFERROR(IF(G101=\"\",\"\",IF(VLOOKUP($G101,Berendezések1,14,FALSE)=0,\"\",VLOOKUP($G101,Berendezések1,14,FALSE))),\"\")","v":""},{"$f":"IFERROR(IF(G101=\"\",\"\",IF(VLOOKUP($G101,Berendezések1,15,FALSE)=0,\"\",VLOOKUP($G101,Berendezések1,15,FALSE))),\"\")","v":""},{"$nulls":10},"",{"$f":"IF(AND(M101<>\"\",AF101<>\"\"),AF101+10*LOG10(M101),\"\")","v":""}]
[98,null,"","","",null,null,"","","",{"$f":"IFERROR(IF(G102<>\"\",VLOOKUP($G102,Berendezések1,10,FALSE),\"\"),\"\")","v":""},{"$f":"IFERROR(IF(G102<>\"\",VLOOKUP($G102,Berendezések1,9,FALSE),\"\"),\"\")","v":""},"","","","","","","","",null,"","",{"$nulls":10},"",""]
[99,null,"","","",null,null,"","","","","","","","","","","","","",null,"","",{"$nulls":10},"",""]
[100,null,"","","",null,null,"","","","","","","","","","","","","",null,"","",{"$nulls":10},"",""]
[101,null,"","","",null,null,"","","","","","","","","","","","","",null,"","",{"$nulls":10},"",""]
[102,null,"","","",null,null,"","","","","","","","","","","","","",null,"","",{"$nulls":10},"",""]
[103,null,"","","",null,null,"","","","","","","","","","","","","",null,"","",{"$nulls":10},"",""]
[104,null,"","","",null,null,"","","","","","","","","","","","","",null,"","",{"$nulls":10},"",""]
[105,null,"","","",null,null,"","","","","","","","","","","","","",null,"","",{"$nulls":10},"",""]
[106,null,"","","",null,null,"","","","","","","","","","","","","",null,"","",{"$nulls":10},"",""]
[107,null,"","","",null,null,"","","","","","","","","","","","","",null,"","",{"$nulls":10},"",""]
[108,null,"","","",null,null,"","","","","","","","","","","","","",null,"","",{"$nulls":10},"",""]
[109,null,"","","",null,null,"","","","","","","","","","","","","",null,"","",{"$nulls":10},"",""]
[110,null,"","","",null,null,"","","","","","","","","","","","","",null,"","",{"$nulls":10},"",""]
[111,null,"",{"$f":"IF(OR(B115=\"Hívójel\",B115=\"Hívónév\",B115=\"\"),\"\",IF(LEFT(B115,2)=\"HA\",\"MA\",\"FA\"))","v":""},{"$f":"IF(OR(B115=\"Hívójel\",B115=\"Hívónév\",B115=\"\"),\"\",\"Üzemelő\")","v":""},null,null,{"$f":"IFERROR(IF(G115=\"\",\"\",IF(VLOOKUP($G115,Berendezések1,2,FALSE)=0,\"\",VLOOKUP($G115,Berendezések1,2,FALSE))),\"\")","v":""},{"$f":"IFERROR(IF(G115<>\"\",VLOOKUP($G115,Berendezések1,3,FALSE),\"\"),\"\")","v":""},"","","","","","","","","","","",null,"","",{"$nulls":10},"",""]
[112,null,"","","",null,null,"","","","","","","","","","","","","",null,"","",{"$nulls":10},"",""]
[113,null,"","","",null,null,"","","","","","","","","","","","","",null,"","",{"$nulls":10},"",""]
[114,null,"","","",null,null,"","","","","","","","","","","","","",null,"","",{"$nulls":10},"",""]
[115,null,"","","",null,null,"","","","","","","","","","","","","",null,"","",{"$nulls":10},"",""]
[116,null,"","","",null,null,"","","","","","","","","","","","","",null,"","",{"$nulls":10},"",""]
[117,null,"","","",null,null,"","","","","","","","","","","","","",null,"","",{"$nulls":10},"",""]
[118,null,"","","",null,null,"","","","","","","","","","","","","",null,"","",{"$nulls":10},"",""]
[119,null,"","","",null,null,"","","","","","","","","","","","","",null,"","",{"$nulls":10},"",""]
[120,null,"","","",null,null,"","","","","","","","","","","","","",null,"","",{"$nulls":10},"",""]
[121,null,"","","",null,null,"","","","","","","","","","","","","",null,"","",{"$nulls":10},"",""]
[122,null,"",{"$f":"IF(OR(B126=\"Hívójel\",B126=\"Hívónév\",B126=\"\"),\"\",IF(LEFT(B126,2)=\"HA\",\"MA\",\"FA\"))","v":""},{"$f":"IF(OR(B126=\"Hívójel\",B126=\"Hívónév\",B126=\"\"),\"\",\"Üzemelő\")","v":""},null,null,{"$f":"IFERROR(IF(G126=\"\",\"\",IF(VLOOKUP($G126,Berendezések1,2,FALSE)=0,\"\",VLOOKUP($G126,Berendezések1,2,FALSE))),\"\")","v":""},{"$f":"IFERROR(IF(G126<>\"\",VLOOKUP($G126,Berendezések1,3,FALSE),\"\"),\"\")","v":""},"","","","","","","","","","","",null,"","",{"$nulls":10},"",""]
[123,null,"","","",null,null,"","","","","","","","","","","","","",null,"","",{"$nulls":10},"",""]
[124,null,"","","",null,null,"","","","","","","","","","","","","",null,"","",{"$nulls":10},"",""]
[125,null,"","","",null,null,"","","","","","","","","","","","","",null,"","",{"$nulls":10},"",""]
[126,null,"","","",null,null,"","","","","","","","","","","","","",null,"","",{"$nulls":10},"",""]
[127,null,"","","",null,null,"","","","","","","","","","","","","",null,"","",{"$nulls":10},"",""]
[128,null,"","","",null,null,"","","","","","","","","","","","","",null,"","",{"$nulls":10},"",""]
[129,null,"","","",null,null,"","",{"$f":"IFERROR(IF(AND(G133<>\"\",OR(I133=\"*\",I133=\"\")),\"Kérem válasszon!\",IF(G133<>\"\",VLOOKUP($G133,Berendezések1,11,FALSE),\"\")),\"\")","v":""},"","","","","","","","","","",null,"","",{"$nulls":10},"",""]
[130,null,{"$f":"IF(OR(B134=\"Hívójel\",B134=\"Hívónév\",B134=\"\"),\"\",\"Kérem válassza ki\")","v":""},"","",null,null,"","","","","","","","","","","","","",null,"","",{"$nulls":10},{"$f":"IF(AI134<>\"\",POWER(10,AI134/10),\"\")","v":""},""]
[]
["Megjegyzés:"]
["Kelt:",{"$f":"IF('Partner adatok'!B57<>0,'Partner adatok'!B57,\"\")","v":"Budapest,"},{"$f":"IF('Partner adatok'!C57<>0,'Partner adatok'!C57,\"\")","v":"dátum"}]

{"sheet":"Listák","index":3,"n_rows":130,"n_cols":13,"rows_kept":130,"hidden":true}
["Kagória",{"$nulls":4},"Sávok","Alkalmazás",{"$nulls":5},"Gyártók"]
["Kérem válassza ki!",null,"Kérem válassza ki!","Kérem válassza ki!",null,"108 MHz - 118 MHz","VOR",{"$nulls":5},"ACK"]
["Adó-vevő",null,"Kommunikáció","Adó-vevő",null,"118 MHz - 137 MHz","COM1",null,"Kategória",{"$nulls":3},"ACR"]
["Mentőeszköz",null,"DME távolságmérő","Egyéb berendezés",null,"2 MHz - 29,9 MHz","COM2",{"$nulls":5},"ACR/ARTEX"]
["Vészjelző",null,"Légijármű-fedélzeti légtérellenőrző radar","Egyéb berendezés",null,"255 kHz - 526,5 kHz","NDB útvonal irányadó föld-levegő",{"$nulls":5},"ACSS"]
["Egyéb berendezés",null,"Légijármű-fedélzeti meteorológiai radar","Egyéb berendezés",null,"255 kHz - 1799 kHz",{"$nulls":6},"AIR PRECISION"]
[null,null,"EPIRB vészjeladó","Vészjelző",null,"329,150 MHz - 335 MHz ","siklópálya",{"$nulls":5},"AIRPLUS"]
[null,null,"ACARS Unilink","Egyéb berendezés",null,"960 MHz - 1215 MHz","DME",{"$nulls":5},"ARTEX"]
["Telepítés",null,"ACAS/TCAS rendszer","Egyéb berendezés",null,"1215 MHz - 1240 MHz","földi légtér ell. Radar",{"$nulls":5},"ASTRONICS"]
["Kérem válasszon!",null,"Doppler rendszerű navigációs segéd berendezés","Egyéb berendezés",null,"1559 MHz - 1626,5 MHz",{"$nulls":6},"AVIDYNE"]
["Beépített",null,"Fedélzeti radar érzékelő és mérő rendszer","Egyéb berendezés",{"$nulls":8},"AVIDYNE/RYAN"]
["Mobil",null,"Gurító radar","Egyéb berendezés",{"$nulls":8},"BAKLAN"]
["Kézi rádió",null,"Időjárás radar","Egyéb berendezés",{"$nulls":8},"BECKER"]
[null,null,"ILS siklópálya adó","Egyéb berendezés",{"$nulls":8},"BENDIX"]
[null,null,"Kutatás-mentés","Mentő eszköz",{"$nulls":8},"BENDIXKING"]
[null,null,"Légi navigáció célú eszköz","Egyéb berendezés",{"$nulls":8},"BENDIXKING - HONEYWELL"]
[null,null,"Légi navigáció célú rendszer","Egyéb berendezés",{"$nulls":8},"CEIS TM"]
[null,null,"Légijármű-fedélzeti Doppler radar","Egyéb berendezés",null,"Adásmód","Alkalmazás",{"$nulls":5},"CESSNA ARC"]
[null,null,"Légtér ellenőrző radar","Egyéb berendezés",null,"16K0G1D","ELT 406.025",{"$nulls":5},"COBHAM"]
["Változás3",null,"Loran-A rádiónavigációs rendszer","Egyéb berendezés",null,"3K20A3X","ELT 243",{"$nulls":5},"COLLINS"]
["Kérem válassza ki!",null,"Magasságmérő radar","Egyéb berendezés",null,"6K00A3EJN","VHF Kommunikáció",{"$nulls":5},"DITTEL"]
["Új berendezés",null,"Mentési célra szolgáló eszköz, vészjeladó","Vészjelző",null,"200KV1DAN","TCAS rendszer",{"$nulls":5},"DITTEL AVIONIK"]
["Adatváltozás",null,"MLS rendszer","Egyéb berendezés",null,"1M00F3XXN","Magasságmérő radar",{"$nulls":5},"DORNE & MARGOLIN"]
["Berendezés Csere",null,"Navigációs feladatokat ellátó és támogató rendszer","Egyéb berendezés",null,"3M00P0NAN","Fedélzeti meteorológiai radar",{"$nulls":5},"DYNON AVIONICS"]
["Berendezés törlés",null,"NDB Útvonal irányadó","Egyéb berendezés",null,"794KP0NAN","DME távolságmérő",{"$nulls":5},"ELEKTROSIGNAL ZAO"]
[null,null,"PLB Pesonal Location Beacon","Vészjelző",null,"12M0M1D","Válasz jeladó",{"$nulls":5},"ELTA"]
[null,null,"Precíziós megközelítő rendszer","Egyéb berendezés",null,"20K9A9WWF","VOR Közelkörzeti rádióirányadó rendszer",{"$nulls":5},"F.U.N.K.E. AVIONICS GMBH"]
[null,null,"Radar","Egyéb berendezés",null,"2K15J3EJN","RH Kommunikáció",{"$nulls":5},"FILSER ELECTRONIC GMBH"]
["Változás2",null,"Radarbója","Egyéb berendezés",{"$nulls":8},"FUNKWERK AVIONICS"]
["Kérem válassza ki",null,"SRE","Egyéb berendezés",{"$nulls":8},"GARMIN"]
["Új jármű",null,"SSR Másodlagos légtér ellenőrző radar","Egyéb berendezés",{"$nulls":8},"GARRECHT AVIONIK"]
["Jármű adatmódosítás",null,"TACAN Léginavigációs segéd eszköz","Egyéb berendezés",{"$nulls":8},"HONEYWELL"]
["Jármű törlés",null,"TCAS rendszer","Egyéb berendezés",{"$nulls":8},"ICOM"]
[null,null,"TVOR","Egyéb berendezés",null,null,"Kérem válassza ki!",{"$nulls":5},"Ismeretlen"]
[null,null,"Útvonali hely jeladó ''Z'' rendszer","Egyéb berendezés",null,null,"Nem vagyok jogosult",{"$nulls":5},"JAPAN RADIO CO LTD."]
[null,null,"Válaszjeladó","Egyéb berendezés",null,null,"Árvíz- Belvízvédelmi készenléti szerv",{"$nulls":5},"KANNAD"]
[null,null,"Változtatható telephelyű repülőtéri leszállító rendszer","Egyéb berendezés",null,null,"Balatoni viharjelző",{"$nulls":5},"KING"]
[null,null,"Vész- és biztonsági összeköttetés","Adó-vevő",null,null,"Bányamentő szolgálat",{"$nulls":5},"L3 COMMUNICATIONS"]
[null,null,"Vészjeladó","Vészjelző",null,null,"Korház, klinika",{"$nulls":5},"MCMURDO"]
[null,null,"VOR Közelkörzeti rádióirányadó rendszer","Egyéb berendezés",null,null,"Mentőszolgálat",{"$nulls":5},"MGL AVIONICS"]
[{"$nulls":6},"Meteorológiai szolgálat",{"$nulls":5},"MICROAIR AVIONICS"]
[{"$nulls":6},"Tisza-tavi viharjelző",{"$nulls":5},"NARCO"]
[{"$nulls":6},"Tűzoltóság",{"$nulls":5},"OCEAN SIGNAL"]
[{"$nulls":6},"Velence-tavi viharjelző",{"$nulls":5},"POINTER"]
[{"$nulls":12},"PRIMUS"]
[null,{"$f":"IF(AND('Jármű vagy telephely adatok'!B3<>\"Hívójel\",'Jármű vagy telephely adatok'!B3<>\"Állomásnév\",'Jármű vagy telephely adatok'!B3<>\"\",'Jármű vagy telephely adatok'!A3<>\"Kelt:\"),'Jármű vagy telephely adatok'!B3&\"; \",\"\")","v":""},{"$nulls":10},"PS ENGINEERING"]
[null,{"$f":"IF(AND('Jármű vagy telephely adatok'!B4<>\"Hívójel\",'Jármű vagy telephely adatok'!B4<>\"Állomásnév\",'Jármű vagy telephely adatok'!B4<>\"\",'Jármű vagy telephely adatok'!A4<>\"Kelt:\"),'Jármű vagy telephely adatok'!B4&\"; \",\"\")","v":""},{"$nulls":10},"ROCKWELL COLLINS"]
[null,{"$f":"IF(AND('Jármű vagy telephely adatok'!B5<>\"Hívójel\",'Jármű vagy telephely adatok'!B5<>\"Állomásnév\",'Jármű vagy telephely adatok'!B5<>\"\",'Jármű vagy telephely adatok'!A5<>\"Kelt:\"),'Jármű vagy telephely adatok'!B5&\"; \",\"\")","v":""},{"$nulls":10},"ROHDE & SCHWARZ"]
[null,{"$f":"IF(AND('Jármű vagy telephely adatok'!B6<>\"Hívójel\",'Jármű vagy telephely adatok'!B6<>\"Állomásnév\",'Jármű vagy telephely adatok'!B6<>\"\",'Jármű vagy telephely adatok'!A6<>\"Kelt:\"),'Jármű vagy telephely adatok'!B6&\"; \",\"\")","v":""},{"$nulls":10},"TECHTEST LIMITED"]
[null,{"$f":"IF(AND('Jármű vagy telephely adatok'!B7<>\"Hívójel\",'Jármű vagy telephely adatok'!B7<>\"Állomásnév\",'Jármű vagy telephely adatok'!B7<>\"\",'Jármű vagy telephely adatok'!A7<>\"Kelt:\"),'Jármű vagy telephely adatok'!B7&\"; \",\"\")","v":""},{"$nulls":10},"TERRA"]
[null,{"$f":"IF(AND('Jármű vagy telephely adatok'!B8<>\"Hívójel\",'Jármű vagy telephely adatok'!B8<>\"Állomásnév\",'Jármű vagy telephely adatok'!B8<>\"\",'Jármű vagy telephely adatok'!A8<>\"Kelt:\"),'Jármű vagy telephely adatok'!B8&\"; \",\"\")","v":""},{"$nulls":10},"THALES"]
[null,{"$f":"IF(AND('Jármű vagy telephely adatok'!B9<>\"Hívójel\",'Jármű vagy telephely adatok'!B9<>\"Állomásnév\",'Jármű vagy telephely adatok'!B9<>\"\",'Jármű vagy telephely adatok'!A9<>\"Kelt:\"),'Jármű vagy telephely adatok'!B9&\"; \",\"\")","v":""},{"$f":"B46&B47&B48&B49&B50&B51&B52&B53&B54&B55&B56&B57&B58&B59&B60&B61&B62&B63&B64&B65&B66&B67&B68&B69&B70&B71&B72&B73&B74&B75&B76&B77&B78&B79&B80&B81&B82&B83&B84&B85&B86&B87&B88&B89&B90&B91&B92&B93&B94&B95&B96&B97&B98&B99&B100&B101&B102&B103&B104&B105&B106&B107&B108&B109&B110","v":""},{"$nulls":9},"TQ AVIONICS"]
[null,{"$f":"IF(AND('Jármű vagy telephely adatok'!B10<>\"Hívójel\",'Jármű vagy telephely adatok'!B10<>\"Állomásnév\",'Jármű vagy telephely adatok'!B10<>\"\",'Jármű vagy telephely adatok'!A10<>\"Kelt:\"),'Jármű vagy telephely adatok'!B10&\"; \",\"\")","v":""},{"$nulls":10},"TQ-SYSTEMS"]
[null,{"$f":"IF(AND('Jármű vagy telephely adatok'!B11<>\"Hívójel\",'Jármű vagy telephely adatok'!B11<>\"Állomásnév\",'Jármű vagy telephely adatok'!B11<>\"\",'Jármű vagy telephely adatok'!A11<>\"Kelt:\"),'Jármű vagy telephely adatok'!B11&\"; \",\"\")","v":""},{"$nulls":10},"TRIG AVIONICS"]
[null,{"$f":"IF(AND('Jármű vagy telephely adatok'!B12<>\"Hívójel\",'Jármű vagy telephely adatok'!B12<>\"Állomásnév\",'Jármű vagy telephely adatok'!B12<>\"\",'Jármű vagy telephely adatok'!A12<>\"Kelt:\"),'Jármű vagy telephely adatok'!B12&\"; \",\"\")","v":""},{"$nulls":10},"TRT AVIONICS"]
[null,{"$f":"IF(AND('Jármű vagy telephely adatok'!B13<>\"Hívójel\",'Jármű vagy telephely adatok'!B13<>\"Állomásnév\",'Jármű vagy telephely adatok'!B13<>\"\",'Jármű vagy telephely adatok'!A13<>\"Kelt:\"),'Jármű vagy telephely adatok'!B13&\"; \",\"\")","v":""},{"$nulls":10},"VERTEX STANDARD"]
[null,{"$f":"IF(AND('Jármű vagy telephely adatok'!B14<>\"Hívójel\",'Jármű vagy telephely adatok'!B14<>\"Állomásnév\",'Jármű vagy telephely adatok'!B14<>\"\",'Jármű vagy telephely adatok'!A14<>\"Kelt:\"),'Jármű vagy telephely adatok'!B14&\"; \",\"\")","v":""},{"$nulls":10},"YAESU"]
[null,{"$f":"IF(AND('Jármű vagy telephely adatok'!B15<>\"Hívójel\",'Jármű vagy telephely adatok'!B15<>\"Állomásnév\",'Jármű vagy telephely adatok'!B15<>\"\",'Jármű vagy telephely adatok'!A15<>\"Kelt:\"),'Jármű vagy telephely adatok'!B15&\"; \",\"\")","v":""}]
[null,{"$f":"IF(AND('Jármű vagy telephely adatok'!B16<>\"Hívójel\",'Jármű vagy telephely adatok'!B16<>\"Állomásnév\",'Jármű vagy telephely adatok'!B16<>\"\",'Jármű vagy telephely adatok'!A16<>\"Kelt:\"),'Jármű vagy telephely adatok'!B16&\"; \",\"\")","v":""}]
[null,{"$f":"IF(AND('Jármű vagy telephely adatok'!B17<>\"Hívójel\",'Jármű vagy telephely adatok'!B17<>\"Állomásnév\",'Jármű vagy telephely adatok'!B17<>\"\",'Jármű vagy telephely adatok'!A17<>\"Kelt:\"),'Jármű vagy telephely adatok'!B17&\"; \",\"\")","v":""}]
[null,{"$f":"IF(AND('Jármű vagy telephely adatok'!B18<>\"Hívójel\",'Jármű vagy telephely adatok'!B18<>\"Állomásnév\",'Jármű vagy telephely adatok'!B18<>\"\",'Jármű vagy telephely adatok'!A18<>\"Kelt:\"),'Jármű vagy telephely adatok'!B18&\"; \",\"\")","v":""}]
[null,{"$f":"IF(AND('Jármű vagy telephely adatok'!B19<>\"Hívójel\",'Jármű vagy telephely adatok'!B19<>\"Állomásnév\",'Jármű vagy telephely adatok'!B19<>\"\",'Jármű vagy telephely adatok'!A19<>\"Kelt:\"),'Jármű vagy telephely adatok'!B19&\"; \",\"\")","v":""}]
[null,{"$f":"IF(AND('Jármű vagy telephely adatok'!B20<>\"Hívójel\",'Jármű vagy telephely adatok'!B20<>\"Állomásnév\",'Jármű vagy telephely adatok'!B20<>\"\",'Jármű vagy telephely adatok'!A20<>\"Kelt:\"),'Jármű vagy telephely adatok'!B20&\"; \",\"\")","v":""}]
[null,{"$f":"IF(AND('Jármű vagy telephely adatok'!B21<>\"Hívójel\",'Jármű vagy telephely adatok'!B21<>\"Állomásnév\",'Jármű vagy telephely adatok'!B21<>\"\",'Jármű vagy telephely adatok'!A21<>\"Kelt:\"),'Jármű vagy telephely adatok'!B21&\"; \",\"\")","v":""}]
[null,{"$f":"IF(AND('Jármű vagy telephely adatok'!B22<>\"Hívójel\",'Jármű vagy telephely adatok'!B22<>\"Állomásnév\",'Jármű vagy telephely adatok'!B22<>\"\",'Jármű vagy telephely adatok'!A22<>\"Kelt:\"),'Jármű vagy telephely adatok'!B22&\"; \",\"\")","v":""}]
[null,{"$f":"IF(AND('Jármű vagy telephely adatok'!B23<>\"Hívójel\",'Jármű vagy telephely adatok'!B23<>\"Állomásnév\",'Jármű vagy telephely adatok'!B23<>\"\",'Jármű vagy telephely adatok'!A23<>\"Kelt:\"),'Jármű vagy telephely adatok'!B23&\"; \",\"\")","v":""}]
[null,{"$f":"IF(AND('Jármű vagy telephely adatok'!B24<>\"Hívójel\",'Jármű vagy telephely adatok'!B24<>\"Állomásnév\",'Jármű vagy telephely adatok'!B24<>\"\",'Jármű vagy telephely adatok'!A24<>\"Kelt:\"),'Jármű vagy telephely adatok'!B24&\"; \",\"\")","v":""}]
[null,{"$f":"IF(AND('Jármű vagy telephely adatok'!B25<>\"Hívójel\",'Jármű vagy telephely adatok'!B25<>\"Állomásnév\",'Jármű vagy telephely adatok'!B25<>\"\",'Jármű vagy telephely adatok'!A25<>\"Kelt:\"),'Jármű vagy telephely adatok'!B25&\"; \",\"\")","v":""}]
[null,{"$f":"IF(AND('Jármű vagy telephely adatok'!B26<>\"Hívójel\",'Jármű vagy telephely adatok'!B26<>\"Állomásnév\",'Jármű vagy telephely adatok'!B26<>\"\",'Jármű vagy telephely adatok'!A26<>\"Kelt:\"),'Jármű vagy telephely adatok'!B26&\"; \",\"\")","v":""}]
[null,{"$f":"IF(AND('Jármű vagy telephely adatok'!B27<>\"Hívójel\",'Jármű vagy telephely adatok'!B27<>\"Állomásnév\",'Jármű vagy telephely adatok'!B27<>\"\",'Jármű vagy telephely adatok'!A27<>\"Kelt:\"),'Jármű vagy telephely adatok'!B27&\"; \",\"\")","v":""}]
[null,{"$f":"IF(AND('Jármű vagy telephely adatok'!B28<>\"Hívójel\",'Jármű vagy telephely adatok'!B28<>\"Állomásnév\",'Jármű vagy telephely adatok'!B28<>\"\",'Jármű vagy telephely adatok'!A28<>\"Kelt:\"),'Jármű vagy telephely adatok'!B28&\"; \",\"\")","v":""}]
[null,{"$f":"IF(AND('Jármű vagy telephely adatok'!B29<>\"Hívójel\",'Jármű vagy telephely adatok'!B29<>\"Állomásnév\",'Jármű vagy telephely adatok'!B29<>\"\",'Jármű vagy telephely adatok'!A29<>\"Kelt:\"),'Jármű vagy telephely adatok'!B29&\"; \",\"\")","v":""}]
[null,{"$f":"IF(AND('Jármű vagy telephely adatok'!B30<>\"Hívójel\",'Jármű vagy telephely adatok'!B30<>\"Állomásnév\",'Jármű vagy telephely adatok'!B30<>\"\",'Jármű vagy telephely adatok'!A30<>\"Kelt:\"),'Jármű vagy telephely adatok'!B30&\"; \",\"\")","v":""}]
[null,{"$f":"IF(AND('Jármű vagy telephely adatok'!B31<>\"Hívójel\",'Jármű vagy telephely adatok'!B31<>\"Állomásnév\",'Jármű vagy telephely adatok'!B31<>\"\",'Jármű vagy telephely adatok'!A31<>\"Kelt:\"),'Jármű vagy telephely adatok'!B31&\"; \",\"\")","v":""}]
[null,{"$f":"IF(AND('Jármű vagy telephely adatok'!B32<>\"Hívójel\",'Jármű vagy telephely adatok'!B32<>\"Állomásnév\",'Jármű vagy telephely adatok'!B32<>\"\",'Jármű vagy telephely adatok'!A32<>\"Kelt:\"),'Jármű vagy telephely adatok'!B32&\"; \",\"\")","v":""}]
[null,{"$f":"IF(AND('Jármű vagy telephely adatok'!B33<>\"Hívójel\",'Jármű vagy telephely adatok'!B33<>\"Állomásnév\",'Jármű vagy telephely adatok'!B33<>\"\",'Jármű vagy telephely adatok'!A33<>\"Kelt:\"),'Jármű vagy telephely adatok'!B33&\"; \",\"\")","v":""}]
[null,{"$f":"IF(AND('Jármű vagy telephely adatok'!B34<>\"Hívójel\",'Jármű vagy telephely adatok'!B34<>\"Állomásnév\",'Jármű vagy telephely adatok'!B34<>\"\",'Jármű vagy telephely adatok'!A34<>\"Kelt:\"),'Jármű vagy telephely adatok'!B34&\"; \",\"\")","v":""}]
[null,{"$f":"IF(AND('Jármű vagy telephely adatok'!B35<>\"Hívójel\",'Jármű vagy telephely adatok'!B35<>\"Állomásnév\",'Jármű vagy telephely adatok'!B35<>\"\",'Jármű vagy telephely adatok'!A35<>\"Kelt:\"),'Jármű vagy telephely adatok'!B35&\"; \",\"\")","v":""}]
[null,{"$f":"IF(AND('Jármű vagy telephely adatok'!B36<>\"Hívójel\",'Jármű vagy telephely adatok'!B36<>\"Állomásnév\",'Jármű vagy telephely adatok'!B36<>\"\",'Jármű vagy telephely adatok'!A36<>\"Kelt:\"),'Jármű vagy telephely adatok'!B36&\"; \",\"\")","v":""}]
[null,{"$f":"IF(AND('Jármű vagy telephely adatok'!B37<>\"Hívójel\",'Jármű vagy telephely adatok'!B37<>\"Állomásnév\",'Jármű vagy telephely adatok'!B37<>\"\",'Jármű vagy telephely adatok'!A37<>\"Kelt:\"),'Jármű vagy telephely adatok'!B37&\"; \",\"\")","v":""}]
[null,{"$f":"IF(AND('Jármű vagy telephely adatok'!B38<>\"Hívójel\",'Jármű vagy telephely adatok'!B38<>\"Állomásnév\",'Jármű vagy telephely adatok'!B38<>\"\",'Jármű vagy telephely adatok'!A38<>\"Kelt:\"),'Jármű vagy telephely adatok'!B38&\"; \",\"\")","v":""}]
[null,{"$f":"IF(AND('Jármű vagy telephely adatok'!B39<>\"Hívójel\",'Jármű vagy telephely adatok'!B39<>\"Állomásnév\",'Jármű vagy telephely adatok'!B39<>\"\",'Jármű vagy telephely adatok'!A39<>\"Kelt:\"),'Jármű vagy telephely adatok'!B39&\"; \",\"\")","v":""}]
[null,{"$f":"IF(AND('Jármű vagy telephely adatok'!B40<>\"Hívójel\",'Jármű vagy telephely adatok'!B40<>\"Állomásnév\",'Jármű vagy telephely adatok'!B40<>\"\",'Jármű vagy telephely adatok'!A40<>\"Kelt:\"),'Jármű vagy telephely adatok'!B40&\"; \",\"\")","v":""}]
[null,{"$f":"IF(AND('Jármű vagy telephely adatok'!B41<>\"Hívójel\",'Jármű vagy telephely adatok'!B41<>\"Állomásnév\",'Jármű vagy telephely adatok'!B41<>\"\",'Jármű vagy telephely adatok'!A41<>\"Kelt:\"),'Jármű vagy telephely adatok'!B41&\"; \",\"\")","v":""}]
[null,{"$f":"IF(AND('Jármű vagy telephely adatok'!B42<>\"Hívójel\",'Jármű vagy telephely adatok'!B42<>\"Állomásnév\",'Jármű vagy telephely adatok'!B42<>\"\",'Jármű vagy telephely adatok'!A42<>\"Kelt:\"),'Jármű vagy telephely adatok'!B42&\"; \",\"\")","v":""}]
[null,{"$f":"IF(AND('Jármű vagy telephely adatok'!B43<>\"Hívójel\",'Jármű vagy telephely adatok'!B43<>\"Állomásnév\",'Jármű vagy telephely adatok'!B43<>\"\",'Jármű vagy telephely adatok'!A43<>\"Kelt:\"),'Jármű vagy telephely adatok'!B43&\"; \",\"\")","v":""}]
[null,{"$f":"IF(AND('Jármű vagy telephely adatok'!B44<>\"Hívójel\",'Jármű vagy telephely adatok'!B44<>\"Állomásnév\",'Jármű vagy telephely adatok'!B44<>\"\",'Jármű vagy telephely adatok'!A44<>\"Kelt:\"),'Jármű vagy telephely adatok'!B44&\"; \",\"\")","v":""}]
[null,{"$f":"IF(AND('Jármű vagy telephely adatok'!B45<>\"Hívójel\",'Jármű vagy telephely adatok'!B45<>\"Állomásnév\",'Jármű vagy telephely adatok'!B45<>\"\",'Jármű vagy telephely adatok'!A45<>\"Kelt:\"),'Jármű vagy telephely adatok'!B45&\"; \",\"\")","v":""}]
[null,{"$f":"IF(AND('Jármű vagy telephely adatok'!B46<>\"Hívójel\",'Jármű vagy telephely adatok'!B46<>\"Állomásnév\",'Jármű vagy telephely adatok'!B46<>\"\",'Jármű vagy telephely adatok'!A46<>\"Kelt:\"),'Jármű vagy telephely adatok'!B46&\"; \",\"\")","v":""}]
[null,{"$f":"IF(AND('Jármű vagy telephely adatok'!B47<>\"Hívójel\",'Jármű vagy telephely adatok'!B47<>\"Állomásnév\",'Jármű vagy telephely adatok'!B47<>\"\",'Jármű vagy telephely adatok'!A47<>\"Kelt:\"),'Jármű vagy telephely adatok'!B47&\"; \",\"\")","v":""}]
[null,{"$f":"IF(AND('Jármű vagy telephely adatok'!B48<>\"Hívójel\",'Jármű vagy telephely adatok'!B48<>\"Állomásnév\",'Jármű vagy telephely adatok'!B48<>\"\",'Jármű vagy telephely adatok'!A48<>\"Kelt:\"),'Jármű vagy telephely adatok'!B48&\"; \",\"\")","v":""}]
[null,{"$f":"IF(AND('Jármű vagy telephely adatok'!B49<>\"Hívójel\",'Jármű vagy telephely adatok'!B49<>\"Állomásnév\",'Jármű vagy telephely adatok'!B49<>\"\",'Jármű vagy telephely adatok'!A49<>\"Kelt:\"),'Jármű vagy telephely adatok'!B49&\"; \",\"\")","v":""}]
[null,{"$f":"IF(AND('Jármű vagy telephely adatok'!B50<>\"Hívójel\",'Jármű vagy telephely adatok'!B50<>\"Állomásnév\",'Jármű vagy telephely adatok'!B50<>\"\",'Jármű vagy telephely adatok'!A50<>\"Kelt:\"),'Jármű vagy telephely adatok'!B50&\"; \",\"\")","v":""}]
[null,{"$f":"IF(AND('Jármű vagy telephely adatok'!B51<>\"Hívójel\",'Jármű vagy telephely adatok'!B51<>\"Állomásnév\",'Jármű vagy telephely adatok'!B51<>\"\",'Jármű vagy telephely adatok'!A51<>\"Kelt:\"),'Jármű vagy telephely adatok'!B51&\"; \",\"\")","v":""}]
[null,{"$f":"IF(AND('Jármű vagy telephely adatok'!B52<>\"Hívójel\",'Jármű vagy telephely adatok'!B52<>\"Állomásnév\",'Jármű vagy telephely adatok'!B52<>\"\",'Jármű vagy telephely adatok'!A52<>\"Kelt:\"),'Jármű vagy telephely adatok'!B52&\"; \",\"\")","v":""}]
[null,{"$f":"IF(AND('Jármű vagy telephely adatok'!B53<>\"Hívójel\",'Jármű vagy telephely adatok'!B53<>\"Állomásnév\",'Jármű vagy telephely adatok'!B53<>\"\",'Jármű vagy telephely adatok'!A53<>\"Kelt:\"),'Jármű vagy telephely adatok'!B53&\"; \",\"\")","v":""}]
[null,{"$f":"IF(AND('Jármű vagy telephely adatok'!B54<>\"Hívójel\",'Jármű vagy telephely adatok'!B54<>\"Állomásnév\",'Jármű vagy telephely adatok'!B54<>\"\",'Jármű vagy telephely adatok'!A54<>\"Kelt:\"),'Jármű vagy telephely adatok'!B54&\"; \",\"\")","v":""}]
[null,{"$f":"IF(AND('Jármű vagy telephely adatok'!B55<>\"Hívójel\",'Jármű vagy telephely adatok'!B55<>\"Állomásnév\",'Jármű vagy telephely adatok'!B55<>\"\",'Jármű vagy telephely adatok'!A55<>\"Kelt:\"),'Jármű vagy telephely adatok'!B55&\"; \",\"\")","v":""}]
[null,{"$f":"IF(AND('Jármű vagy telephely adatok'!B56<>\"Hívójel\",'Jármű vagy telephely adatok'!B56<>\"Állomásnév\",'Jármű vagy telephely adatok'!B56<>\"\",'Jármű vagy telephely adatok'!A56<>\"Kelt:\"),'Jármű vagy telephely adatok'!B56&\"; \",\"\")","v":""}]
[null,{"$f":"IF(AND('Jármű vagy telephely adatok'!B57<>\"Hívójel\",'Jármű vagy telephely adatok'!B57<>\"Állomásnév\",'Jármű vagy telephely adatok'!B57<>\"\",'Jármű vagy telephely adatok'!A57<>\"Kelt:\"),'Jármű vagy telephely adatok'!B57&\"; \",\"\")","v":""}]
[null,{"$f":"IF(AND('Jármű vagy telephely adatok'!B58<>\"Hívójel\",'Jármű vagy telephely adatok'!B58<>\"Állomásnév\",'Jármű vagy telephely adatok'!B58<>\"\",'Jármű vagy telephely adatok'!A58<>\"Kelt:\"),'Jármű vagy telephely adatok'!B58&\"; \",\"\")","v":""}]
[null,{"$f":"IF(AND('Jármű vagy telephely adatok'!B59<>\"Hívójel\",'Jármű vagy telephely adatok'!B59<>\"Állomásnév\",'Jármű vagy telephely adatok'!B59<>\"\",'Jármű vagy telephely adatok'!A59<>\"Kelt:\"),'Jármű vagy telephely adatok'!B59&\"; \",\"\")","v":""}]
[null,{"$f":"IF(AND('Jármű vagy telephely adatok'!B60<>\"Hívójel\",'Jármű vagy telephely adatok'!B60<>\"Állomásnév\",'Jármű vagy telephely adatok'!B60<>\"\",'Jármű vagy telephely adatok'!A60<>\"Kelt:\"),'Jármű vagy telephely adatok'!B60&\"; \",\"\")","v":""}]
[null,{"$f":"IF(AND('Jármű vagy telephely adatok'!B61<>\"Hívójel\",'Jármű vagy telephely adatok'!B61<>\"Állomásnév\",'Jármű vagy telephely adatok'!B61<>\"\",'Jármű vagy telephely adatok'!A61<>\"Kelt:\"),'Jármű vagy telephely adatok'!B61&\"; \",\"\")","v":""}]
[null,{"$f":"IF(AND('Jármű vagy telephely adatok'!B62<>\"Hívójel\",'Jármű vagy telephely adatok'!B62<>\"Állomásnév\",'Jármű vagy telephely adatok'!B62<>\"\",'Jármű vagy telephely adatok'!A62<>\"Kelt:\"),'Jármű vagy telephely adatok'!B62&\"; \",\"\")","v":""}]
[null,{"$f":"IF(AND('Jármű vagy telephely adatok'!B63<>\"Hívójel\",'Jármű vagy telephely adatok'!B63<>\"Állomásnév\",'Jármű vagy telephely adatok'!B63<>\"\",'Jármű vagy telephely adatok'!A63<>\"Kelt:\"),'Jármű vagy telephely adatok'!B63&\"; \",\"\")","v":""}]
[null,{"$f":"IF(AND('Jármű vagy telephely adatok'!B64<>\"Hívójel\",'Jármű vagy telephely adatok'!B64<>\"Állomásnév\",'Jármű vagy telephely adatok'!B64<>\"\",'Jármű vagy telephely adatok'!A64<>\"Kelt:\"),'Jármű vagy telephely adatok'!B64&\"; \",\"\")","v":""}]
[null,{"$f":"IF(AND('Jármű vagy telephely adatok'!B65<>\"Hívójel\",'Jármű vagy telephely adatok'!B65<>\"Állomásnév\",'Jármű vagy telephely adatok'!B65<>\"\",'Jármű vagy telephely adatok'!A65<>\"Kelt:\"),'Jármű vagy telephely adatok'!B65&\"; \",\"\")","v":""}]
[null,{"$f":"IF(AND('Jármű vagy telephely adatok'!B66<>\"Hívójel\",'Jármű vagy telephely adatok'!B66<>\"Állomásnév\",'Jármű vagy telephely adatok'!B66<>\"\",'Jármű vagy telephely adatok'!A66<>\"Kelt:\"),'Jármű vagy telephely adatok'!B66&\"; \",\"\")","v":""}]
[null,{"$f":"IF(AND('Jármű vagy telephely adatok'!B67<>\"Hívójel\",'Jármű vagy telephely adatok'!B67<>\"Állomásnév\",'Jármű vagy telephely adatok'!B67<>\"\",'Jármű vagy telephely adatok'!A67<>\"Kelt:\"),'Jármű vagy telephely adatok'!B67&\"; \",\"\")","v":""}]
[null,{"$f":"IF(AND('Jármű vagy telephely adatok'!B68<>\"Hívójel\",'Jármű vagy telephely adatok'!B68<>\"Állomásnév\",'Jármű vagy telephely adatok'!B68<>\"\",'Jármű vagy telephely adatok'!A68<>\"Kelt:\"),'Jármű vagy telephely adatok'!B68&\"; \",\"\")","v":""}]
[null,{"$f":"IF(AND('Jármű vagy telephely adatok'!B69<>\"Hívójel\",'Jármű vagy telephely adatok'!B69<>\"Állomásnév\",'Jármű vagy telephely adatok'!B69<>\"\",'Jármű vagy telephely adatok'!A69<>\"Kelt:\"),'Jármű vagy telephely adatok'!B69&\"; \",\"\")","v":""}]
[null,{"$f":"IF(AND('Jármű vagy telephely adatok'!B70<>\"Hívójel\",'Jármű vagy telephely adatok'!B70<>\"Állomásnév\",'Jármű vagy telephely adatok'!B70<>\"\",'Jármű vagy telephely adatok'!A70<>\"Kelt:\"),'Jármű vagy telephely adatok'!B70&\"; \",\"\")","v":""}]
[null,{"$f":"IF(AND('Jármű vagy telephely adatok'!B71<>\"Hívójel\",'Jármű vagy telephely adatok'!B71<>\"Állomásnév\",'Jármű vagy telephely adatok'!B71<>\"\",'Jármű vagy telephely adatok'!A71<>\"Kelt:\"),'Jármű vagy telephely adatok'!B71&\"; \",\"\")","v":""}]
[null,{"$f":"IF(AND('Jármű vagy telephely adatok'!B72<>\"Hívójel\",'Jármű vagy telephely adatok'!B72<>\"Állomásnév\",'Jármű vagy telephely adatok'!B72<>\"\",'Jármű vagy telephely adatok'!A72<>\"Kelt:\"),'Jármű vagy telephely adatok'!B72&\"; \",\"\")","v":""}]
[null,{"$f":"IF(AND('Jármű vagy telephely adatok'!B73<>\"Hívójel\",'Jármű vagy telephely adatok'!B73<>\"Állomásnév\",'Jármű vagy telephely adatok'!B73<>\"\",'Jármű vagy telephely adatok'!A73<>\"Kelt:\"),'Jármű vagy telephely adatok'!B73&\"; \",\"\")","v":""}]
[null,{"$f":"IF(AND('Jármű vagy telephely adatok'!B74<>\"Hívójel\",'Jármű vagy telephely adatok'!B74<>\"Állomásnév\",'Jármű vagy telephely adatok'!B74<>\"\",'Jármű vagy telephely adatok'!A74<>\"Kelt:\"),'Jármű vagy telephely adatok'!B74&\"; \",\"\")","v":""}]
[null,{"$f":"IF(AND('Jármű vagy telephely adatok'!B75<>\"Hívójel\",'Jármű vagy telephely adatok'!B75<>\"Állomásnév\",'Jármű vagy telephely adatok'!B75<>\"\",'Jármű vagy telephely adatok'!A75<>\"Kelt:\"),'Jármű vagy telephely adatok'!B75&\"; \",\"\")","v":""}]
[null,{"$f":"IF(AND('Jármű vagy telephely adatok'!B76<>\"Hívójel\",'Jármű vagy telephely adatok'!B76<>\"Állomásnév\",'Jármű vagy telephely adatok'!B76<>\"\",'Jármű vagy telephely adatok'!A76<>\"Kelt:\"),'Jármű vagy telephely adatok'!B76&\"; \",\"\")","v":""}]
[null,{"$f":"IF(AND('Jármű vagy telephely adatok'!B77<>\"Hívójel\",'Jármű vagy telephely adatok'!B77<>\"Állomásnév\",'Jármű vagy telephely adatok'!B77<>\"\",'Jármű vagy telephely adatok'!A77<>\"Kelt:\"),'Jármű vagy telephely adatok'!B77&\"; \",\"\")","v":""}]
[null,{"$f":"IF(AND('Jármű vagy telephely adatok'!B78<>\"Hívójel\",'Jármű vagy telephely adatok'!B78<>\"Állomásnév\",'Jármű vagy telephely adatok'!B78<>\"\",'Jármű vagy telephely adatok'!A78<>\"Kelt:\"),'Jármű vagy telephely adatok'!B78&\"; \",\"\")","v":""}]
[null,{"$f":"IF(AND('Jármű vagy telephely adatok'!B79<>\"Hívójel\",'Jármű vagy telephely adatok'!B79<>\"Állomásnév\",'Jármű vagy telephely adatok'!B79<>\"\",'Jármű vagy telephely adatok'!A79<>\"Kelt:\"),'Jármű vagy telephely adatok'!B79&\"; \",\"\")","v":""}]
[null,{"$f":"IF(AND('Jármű vagy telephely adatok'!B80<>\"Hívójel\",'Jármű vagy telephely adatok'!B80<>\"Állomásnév\",'Jármű vagy telephely adatok'!B80<>\"\",'Jármű vagy telephely adatok'!A80<>\"Kelt:\"),'Jármű vagy telephely adatok'!B80&\"; \",\"\")","v":""}]
[null,{"$f":"IF(AND('Jármű vagy telephely adatok'!B81<>\"Hívójel\",'Jármű vagy telephely adatok'!B81<>\"Állomásnév\",'Jármű vagy telephely adatok'!B81<>\"\",'Jármű vagy telephely adatok'!A81<>\"Kelt:\"),'Jármű vagy telephely adatok'!B81&\"; \",\"\")","v":""}]
[null,{"$f":"IF(AND('Jármű vagy telephely adatok'!B82<>\"Hívójel\",'Jármű vagy telephely adatok'!B82<>\"Állomásnév\",'Jármű vagy telephely adatok'!B82<>\"\",'Jármű vagy telephely adatok'!A82<>\"Kelt:\"),'Jármű vagy telephely adatok'!B82&\"; \",\"\")","v":""}]
[null,{"$f":"IF(AND('Jármű vagy telephely adatok'!B83<>\"Hívójel\",'Jármű vagy telephely adatok'!B83<>\"Állomásnév\",'Jármű vagy telephely adatok'!B83<>\"\",'Jármű vagy telephely adatok'!A83<>\"Kelt:\"),'Jármű vagy telephely adatok'!B83&\"; \",\"\")","v":""}]
[null,{"$f":"IF(AND('Jármű vagy telephely adatok'!B84<>\"Hívójel\",'Jármű vagy telephely adatok'!B84<>\"Állomásnév\",'Jármű vagy telephely adatok'!B84<>\"\",'Jármű vagy telephely adatok'!A84<>\"Kelt:\"),'Jármű vagy telephely adatok'!B84&\"; \",\"\")","v":""}]
[null,{"$f":"IF(AND('Jármű vagy telephely adatok'!B85<>\"Hívójel\",'Jármű vagy telephely adatok'!B85<>\"Állomásnév\",'Jármű vagy telephely adatok'!B85<>\"\",'Jármű vagy telephely adatok'!A85<>\"Kelt:\"),'Jármű vagy telephely adatok'!B85&\"; \",\"\")","v":""}]
[null,{"$f":"IF(AND('Jármű vagy telephely adatok'!B86<>\"Hívójel\",'Jármű vagy telephely adatok'!B86<>\"Állomásnév\",'Jármű vagy telephely adatok'!B86<>\"\",'Jármű vagy telephely adatok'!A86<>\"Kelt:\"),'Jármű vagy telephely adatok'!B86&\"; \",\"\")","v":""}]
[null,{"$f":"IF(AND('Jármű vagy telephely adatok'!B87<>\"Hívójel\",'Jármű vagy telephely adatok'!B87<>\"Állomásnév\",'Jármű vagy telephely adatok'!B87<>\"\",'Jármű vagy telephely adatok'!A87<>\"Kelt:\"),'Jármű vagy telephely adatok'!B87&\"; \",\"\")","v":""}]

{"sheet":"Kitöltési útmutató","index":4,"n_rows":62,"n_cols":4,"rows_kept":62,"merged":[[0,1,0,2],[1,1,14,1],[15,1,22,1],[23,1,29,1],[30,1,35,1],[36,1,50,1],[61,1,61,2]]}
[null,"A táblázatok kezelése  ",null,"A táblázatokban csak az adatmezőkbe lehet írni, a többi cella szerkesztése nem megengedett. \nA táblázat egyes cellái beírt Excel képleteket, függvényeket tartalmaznak, amelyek az adatszolgltatás teljesítését segítik. Amennyiben egy ilyen cellába új értéket viszünk be, ezzel a képlet kitörlésre került a cellából.\nA \"Jármű vagy telephely adatok\" és a \"Berendezés adatok\" táblázatokban a felesleges sorok kitörölhetőek vagy elrejthetőek, illetve lehetséges a táblázatokba további sorok beszúrása.  A beszúrt sorokba egy még nem szerkesztett sorból az elrejtett képletek átmásolhatóak. A cella sárga háttérszíne a mező kötelező kitöltését jelzi, míg a piros háttér szín valószínűsíthetően hibás adatra hívja fel a figyelmet.\nHa letöltött táblázatot a Sablon könyvtárba mentettük el, akkor mint Új táblázatot megnyitva egy kitöltetlen táblázattal kezdhetünk dolgozni. \nA kitöltött táblázat - akár Új Táblazatként, akár korábban mentett fájlból került megnyitásra, a kitöltő által elérhető mappába kimenthető.\n\nA táblázatok makrókat nem tartalmaznak."]
[null,"Partner","Partnerkód: (ha ismert)","A berendezés jellege lehet Üzemelő vagy tartalék berendezés, amely értéket legördülő mezőből lehet kiválasztani. Más érték nem adható meg. Tartalék állomások után nem kerül frekvenciahasználati díj megállapításra."]
[null,null,"Neve","A jogi partner cégbíróság bejegyzés, a természetes személy anyakönyvezés szerinti neve"]
[null,null,"Székhely, vagy állandó lakcíme","Jogi partner székhely címe, természetes személy állandólekhely címe (Pl.: 1012 Budapest, Ostrom utca 23-25.)"]
[null,null,"Levélcíme","Jogi partner székhely címének levelezési címe, természetes személy állandólekhely címének levelezési címe. (Pl.: 1525 Budapest, Pf.: 75.)"]
[null,null,"Értesítési címe","A partner értesítési közigazgatási címe. (Pl.: 1133 Budapest, Visegrádi utca 106.)"]
[null,null,"Értesítési levélcíme","A partner értesítési címének levelezési címe. (Pl.: 1376 Budapest, Pf.: 997.)"]
[null,null,"Bankszámlaszám:","Annak a bankszámlának a száma, amelyről a frekvenciadíjat fogják fizetni."]
[null,null,"Díjkedvezmény","A frekvenciadíj kedvezményre való jogosultság okát lehet kiválasztani a legördülő értékekből."]
[null,null,{"$f":"IF($D2=\"Természetes személy\",\"Adóazonosító jele:\",\"Adószáma:\")","v":"Adószáma:"},"Jogi személy adószáma"]
[null,null,"Adóazonosító jele","Természetes személy adó azonosító jele."]
[null,null,"Anyja neve","Természetes személy anyja születés kori neve"]
[null,null,"Születés ideje","Természetes személy születési ideje éééé.hh.nn forátumban"]
[null,null,"Születés országa","Természetes személy születési helyének országa - ha az nem Magyarország."]
[null,null,"Születés helye","Természetes személy születési helye"]
[null,"A kérelem","Ügyintéző neve","A kérelmet benyújtó jogi személy ügyintézőjének neve."]
[null,null,"Telefonja","A kérelmet benyújtó jogi személy ügyintézőjének telefonszáma."]
[null,null,"E-mail címe","A kérelmet benyújtó jogi személy ügyintézőjének E-mail címe."]
[null,null,"Kérelem azonosítója","A kérelmet azonosító adat, amely a kérelmet a benyújtó számára azonosítja."]
[null,null,"Eljárási megbízás","Eljárási megbízás eredeti példányát kell az esetbe csatolni a kérelemhez, amennyiben a kérelmet nem az engedélyes nyújtja be."]
[null,null,"Kérelemmel érintett hívójelek","Az ügyintézést segítő összesítés, amelyet a kérelmezőnek nem kell töltenie. A mező a Jármű vagy telephely adatok lapon megadott adatokból töltődik fel."]
[null,null,"Nyilatkozat","A kiadott rádióengedély véglegessé válásával lesz jogszerű a frekvenciahasználat, ezért a kiadott rádióengedélyeket véglegesíteni kell. A kérelem benyújtója nyilatkozhat, hogy lemond-e fellebbezési jogáról helyt adó határozat esetében. Lemodás esetán a határozat átvételének másnapján, ennek hiányában csak a fellebbezésre nyitva álló idő letelte után válik véglegessé a rádióengedély."]
[null,null,"Megjegyzés:","Kérelmező által szabadon tölthető mező, valamely- a rádióengedély kiadás szempontjából fontos körülmény megadására."]
[null,"A jármű","Hívójel","Itt kell megadni a jármű hívójelét, a mezőben előre berirt \"Hívójel\" érték felülírásával"]
[null,null,"A változás","A változás kód megadásával jelezhető, hogy az új járművet-, egy korábbi már engedélyben szereplő jármű adatait módosítani vagy törölni szeretnénk, illetve a járműbe szerelt állomásokban történt változás, és a jármű azonosítát szolgálja ez az adatsor."]
[null,null,"A jármű típusa","A jármű azonosítását segítő jármű típusát kell megadni."]
[null,null,"Lajstrom jele","A jármű lajstrom jelét kell megadni."]
[null,null,"Többségi, vagy kijelölt tulajdonos neve","Többségi, vagy kijelölt tulajdonos neve"]
[null,null,"Többségi, vagy kijelölt tulajdonos címe","Többségi, vagy kijelölt tulajdonos címe"]
[null,null,"Az évi időszakos üzemeltetés időszaka","Amennyiben az állomás nem folyamatos üzemeltetésű, akkor megadható az üzemeltetés időszaka. Az időszakot úgy kell hh.nn formátumban megadni, hogy évente legalább egybefüggően 92 napot kell üzemelő állapotúnak lennie."]
[null,"Földi állomás\ntelephely","Állomásnév","Itt kell megadni az állandóhelyű állomás állomásnevét, a mezőben előre berirt \"Állomásnév\" érték felülírásával. Legfeljebb 16 karakter hosszú lehet."]
[null,null,"Változás jellege","A változás kód megadásával jelezhető, hogy az új telephelyet-, egy korábbi már engedélyben szereplő telephely adatait módosítani vagy törölni szeretnénk, illetve a telephelyen szerelt állomásokban történt változás, és a telephely azonosítát szolgálja ez az adatsor."]
[null,null,"Tengerszint feletti magassága (m)","Az antenna talppontjának Balti tengerhez mért magassága méterben megadva."]
[null,null,"Címe","Az állandóhelyű állomás közigazgatási címe."]
[null,null,"EOV kordinátái","Az antenna talppontjának EOV koordinátái."]
[null,null,"Az évi időszakos üzemeltetés időszaka","Amennyiben az állomás nem folyamatos üzemeltetésű, akkor megadható az üzemeltetés időszaka. Az időszakot úgy kell hh.nn formátumban megadni, hogy évente legalább egybefüggően 92 napot kell üzemelő állapotúnak lennie."]
[null,"Rádióberendezés","Hívójel, vagy hívónév","A Jármű vagy telephely adatok lapon megadott Hívójelek és Hívónevek közül kell választani, hogy a rögzített berendezés mely járműhöz vagy telephelyhez tartozik. A legördülő listában nem szereplő Hívójel vagy Hívónév nem adható meg."]
[null,null,"Állomás osztály","Az állomás osztályt az RR. szerinti kódolással kell megadni.  MA - Légi jármű állomás; AM - Légijármű vevő állomás; MO - Hordozható állomás; FA - földi állandóhelyű állomás; AL - földi navigációs célú állomás. Az adat legördülő mezőértékből választható ki, más érték nem adható meg. A légimozgószolgálatban üzemeltetett földi telepítésű radar állomásokat a radar állomásokra vonatkozó eljárásszerint kell engedélyeztetni."]
[null,null,"Jellege","A berendezés jellege lehet Üzemelő vagy tartalék berendezés, amely értéket legördülő mezőből lehet kiválasztani. Más érték nem adható meg. Tartalék állomások után nem kerül frekvenciahasználati díj megállapításra."]
[null,null,"Üzembe helyzés  ideje","A rádióállomás üzembe helyezés ideje. éééé.hh.nn formátumban kell megadni."]
[null,null,"Rádióberendezés Típus","A rádióberendezés típusát kell megadni, ahogy az a gépkönyvben szerepel. Legördülő mezőből is választhatunk berendezés típust (2 klick a mezőben), ez esetben az ismert adatok beíródnak a táblázatba. A legördülő tartalomban nem szereplő típus megadható."]
[null,null,"Gyártó","Rádióberendezés gyártója"]
[null,null,"TSO vagy ETSO szám:","Lajstromozott járműhöz kötelező megadni. A megadott adatot a easa.europa.eu/download/etso/etsoa.pdf vagy rgl.faa.gov/Regulatory_and_Guidance_Library/rgTSO.nsf/MainFrame?OpenFrameSet oldalon ellenőrizzük."]
[null,null,"Használat módja:","Az adatot legördülő értékből választható ki. Ettől eltérő adat nem adható meg."]
[null,null,"Berendezés Kategória","A rádióberendezés RR. szerinti besorolását kell megadni, amely lehet Adó-vevő; Mentő eszköz; Vészjelző; és Egyéb berendezés. Az értéket legördülő mezőből lehet kiválasztani, más adat nem adható meg."]
[null,null,"Rendeltetés","A rádióberendezés RR. szerinti rendeltetését kell megadni, amely legördülő mezőből lehet kiválasztani. Nem lehet más tartalmat megadni."]
[null,null,"Névleges Teljesítménye (W)","A rádióberendezés gyári katalógusa szerinti névleges teljesítményét kell W-ban megadni."]
[null,null,"Engedélyezendő frekvenciasáv","Abban az esetben, ha a rádióberendezés üzemi frekvenciáját működés közben az operátornak, vagy a rádiórendszer választja - választhatja ki, akkor azt a frekvenciasávot kell megadni, amelyben az berendezés jogszerűen üzemeltethető. Pl. légi VHF sávú kommunikációs berendezés esetében 118-137 MHz"]
[null,null,"Adásmód","Az elfoglalt RF sávszélesség és moduláció RR szerinti kódolásával megadva. Legfeljebb 9 karakter."]
[null,null,"TX_ (MHz)","Az állomás fix adófrekvenciája. Összesen 4 db fix adó-, vevő, vagy adó-vevő frekvencia adható meg."]
[null,null,"Rx_ (MHz)","Az állomás fix vevőfrekvenciája. Összesen 4 db fix adó-, vevő, vagy adó-vevő frekvencia adható meg."]
[null,"Antenna\ncsak földi állomások esetében kell megadni.","Hívóneve","Itt kell megadni az állandóhelyű állomás hívónevét - ha annak van Hívóneve, "]
[null,null,"típus","Az antenna típusát kell megadni a gyári katalógus adat szerint. "]
[null,null,"Gyártó","Az antenna gyártóját kell megadni a gyári katalógus adat szerint. "]
[null,null,"Nyereség G; dB)","Az antenna nyereségét kell megadni a félhullámú dipol antennához képest dB-ben. Katalógus adat.  "]
[null,null,"Fh (m)","Az antenna sugárzási súlypontjának föld feletti magassága méterben."]
[null,null,"Irány","Körsugárzó antenna esetében \"ND\" értéket kell megadni, irányított antenna esetében az Északi irányhoz képest jobb forgási irányú elfordulást fokban. (0-359 o)"]
[null,null,"ERP (W)","A kisugárzott effektív teljesítmény W-ban megadva. A táblázat számítja a megadott névleges teljesítményből és antenna nyereségből, de felülírható."]
[null,null,"ERP (dBW)","A kisugárzott effektív teljesítmény dBW-ban megadva. A táblázat számítja a megadott névleges teljesítményből és antenna nyereségből, de felülírható."]
[null,null,"Ellátási sugár","Az állomás által rádiótechnikailag lefedett terület suga km-ben."]
[null,null,"Napi üzemidő kezdte és vége","Ha az állomás nem nap 0-24 ben üzemel, akkor az üzemeltetési órákat kell megadni óó:pp formátumban"]
[null,"A kérelem benyújtása    ",null,"A kitöltött Excel fájlt az aláírt kérelem mellékleteként kell benyújtani Excel elektronikus formában.  A kitöltött Excel táblázatok aláírt kérelem nélküli beküldése nem fogadható be kérelemként.\nAz aláírt kérelmet és az elektronikus adatszolgáltatást postán a 1376 Budapest, Pf.: 977. címre kell megküldeni, személyesen a 1133 Budapest, Visegrádi utca 106. szám alatt található Ügyfélszolgálaton lehet benyújtani."]

{"sheet":"Eq_par","index":5,"n_rows":223,"n_cols":17,"rows_kept":223,"hidden":true}
["Sr","Típus","GYÁRTÓ","ETSO szám","adó frekvencia\n(sáv)","adó fixfrekvencia\nMHz","Vevőfrekvencia\nMHz","Teljesítmény\nW","Gyári Adásmódok","Vészjeladó","Kategória","Telepítés","Tx1","Ad1","Tx2","Ad2","Megjegyzés"]
[1,"300SL","PRIMUS","TSO-C63A",null,"9375",9375,null,"3M00P0NAN","Légijármű-fedélzeti meteorológiai radar","Egyéb berendezés","Beépített"]
[2,"406 AF","HONEYWELL","EASA.IM.21O.706",null,406.025,null,"0,1/0,1/5","16KOG1D","Vészjeladó","Vészjelző","Mobil",243,"3K20A3X",121.5,"3K20A3X"]
[3,"406 AF(6D)","KANNAD","EASA.21O.1097, REV. B",null,406.025,null,"0,1/0,1/5","16KOG1D","Vészjeladó","Vészjelző","Mobil",243,"3K20A3X",121.5,"3K20A3X"]
[4,"406 AF-Compact","KANNAD","EASA.21O.818, REV. B",null,406.028,null,"5/0,4","16KOG1D","Vészjeladó","Vészjelző","Mobil",243,"3K20A3X",121.5,"3K20A3X"]
[5,"406 AF-H","KANNAD","EASA.21O.1098, REV. A",null,406.025,null,"5/0,1/0,1","16KOG1D","Vészjeladó","Vészjelző","Mobil",243,"3K20A3X",121.5,"3K20A3X"]
[6,"406 AP","KANNAD","EASA.21O.1098, REV. A",null,406.025,null,"0,4/0,4/5","16KOG1D","Vészjeladó","Vészjelző","Mobil",243,"3K20A3X",121.5,"3K20A3X"]
[7,"500-12","TECHTEST LIMITED","TSO-C126",null,406.025,null,"0,1/0,1/5","16KOG1D","Vészjeladó","Vészjelző","Mobil",243,"3K20A3X",121.5,"3K20A3X"]
[8,"618M-5","ROCKWELL COLLINS","TSO-C37d","118 - 136,975 ",null,null,20,"6K00A3EJN","Kommunikáció","Adó-vevő","Beépített"]
[9,"628T-2A","COLLINS","TSO-C31","2-29,9",null,null,400,"A3H, A3J, A1, A7J, A9J","Kommunikáció","Adó-vevő","Beépített"]
[10,"860E5 DME","ROCKWELL COLLINS","*","960-1215 MHz",{"$nulls":3},"794KP0NAN","DME távolságmérő","Egyéb berendezés","Beépített"]
[11,"860F-4","ROCKWELL COLLINS","TSO-C87",{"$nulls":4},"1M00F3XXN","Magasságmérő radar","Egyéb berendezés","Beépített"]
[12,"91-001-220A","MCMURDO","*",null,406,null,"0,1/5","16KOG1D","Vészjeladó","Vészjelző","Mobil",121.5,"3K20A3X",121.5,"3K20A3X"]
[13,"9900BX","AVIDYNE/RYAN","*",null,1090,1030,null,"200KV1DAN","ACAS/TCAS rendszer","Egyéb berendezés","Beépített"]
[14,"A06","ELTA","F.O.089",null,406.028,null,"0,1/0,1/5","16KOG1D","Vészjeladó","Vészjelző","Mobil",243,"3K20A3X",121.5,"3K20A3X"]
[15,"A-06 AP","ELTA","F.O.033",null,406.025,null,"0,1/0,1/5","16KOG1D","Vészjeladó","Vészjelző","Mobil",243,"3K20A3X",121.5,"3K20A3X"]
[16,"A06T","ELTA","F.O.089",null,406.025,null,"0,1/0,1/5","16KOG1D","Vészjeladó","Vészjelző","Mobil",243,"3K20A3X",121.5,"3K20A3X"]
[17,"A-06V2","ELTA","F.O.037",null,406.025,null,"0,1/0,1/5","16KOG1D","Vészjeladó","Vészjelző","Mobil",243,"3K20A3X",121.5,"3K20A3X"]
[18,"ADT 406 S","ELTA","EASA.21O.624",null,406.028,null,"0,14/0,14/5","16KOG1D","Vészjeladó","Vészjelző","Mobil",243,"3K20A3X",121.5,"3K20A3X"]
[19,"ADT406 AF","ELTA","EASA.21O.624",null,406.028,null,"0,14/0,14/5","16KOG1D","Vészjeladó","Vészjelző","Mobil",243,"3K20A3X",121.5,"3K20A3X"]
[20,"ADT406 AF/AP-H ","ELTA","EASA.21O.624",null,406.028,null,"0,14/0,14/5","16KOG1D","Vészjeladó","Vészjelző","Mobil",243,"3K20A3X",121.5,"3K20A3X"]
[21,"ADT406 AP ","ELTA","EASA.21O.624",null,406.028,null,"0,14/0,14/5","16KOG1D","Vészjeladó","Vészjelző","Mobil",243,"3K20A3X",121.5,"3K20A3X"]
[22,"AHV1600","THALES","EASA.21O.1286, REV. C","4200 - 4400",null,"4200 - 4400","0,07","1M00F3XXN","Magasságmérő radar","Egyéb berendezés","Beépített"]
[23,"AK-451","AMERI-KING","TSO-C126",null,406.028,null,"0,1/0,1/5","16KOG1D","Vészjeladó","Vészjelző","Mobil",243,"3K20A3X",121.5,"3K20A3X"]
[24,"ALA-52B","HONEYWELL","EASA.IM.21O.10033125","4235 - 4365",null,null,"0,4","1M00F3XXN","Magasságmérő radar","Egyéb berendezés","Beépített"]
[25,"ALT-55B","ROCKWELL COLLINS","TSO-C87",null,4300,4300,"0,35","1M00F3XXN","Magasságmérő radar","Egyéb berendezés","Beépített"]
[26,"AO6V2 ELT ","CEIS TM","*",null,406.025,null,"0,1/0,1/5","16KOG1D","Vészjeladó","Vészjelző","Mobil",243,"3K20A3X",121.5,"3K20A3X"]
[27,"AR-4201","BECKER","LBA.O.10.911/87 JTSO","118 - 136,975 ",null,null,5,"6K00A3EJN","Kommunikáció","Adó-vevő","Beépített",{"$nulls":4},"2018 jan. 01. után nem lehet fedélzeti rádió"]
[28,"AR6201","BECKER","EASA.21O.1249, REV. A","118 - 136,975 ",null,null,">6","6K00A3EJN","Kommunikáció","Adó-vevő","Beépített"]
[29,"AR6203","BECKER","EASA.21O.10054849","118-137",{"$nulls":3},"6K00A3EJN","Kommunikáció","Adó-vevő","Beépített"]
[30,"ART 2000","BENDIXKING - HONEYWELL","*",null,"9375",9375,4000,"3M00P0NAN","Légijármű-fedélzeti meteorológiai radar","Egyéb berendezés","Beépített"]
[31,"AT-150","NARCO","TSO-C74C",null,1090,1030,250,"12M0M1D","Válaszjeladó","Egyéb berendezés","Beépített"]
[32,"AT-50","NARCO","TSO-C74",null,1090,1030,null,"12M0M1D","Válaszjeladó","Egyéb berendezés","Beépített"]
[33,"AT-50A","NARCO","TSO-C74B",null,1090,1031,250,"12M0M1D","Válaszjeladó","Egyéb berendezés","Beépített"]
[34,"ATC-2000","BECKER","LBA.O.10.930/54 JTSO",null,1090,1030,">1000 ","12M0M1D","Válaszjeladó","Egyéb berendezés","Beépített"]
[35,"ATR 720 C_","DITTEL","*","118,0-136,0 ",null,null,6,"6K00A3EJN","Kommunikáció","Adó-vevő","Beépített"]
[36,"ATR500","F.U.N.K.E. AVIONICS GMBH","LBA.O.10.911/113JTSO","118 - 136,975",null,null,6,"6K00A3EJN","Kommunikáció","Adó-vevő","Beépített",{"$nulls":4},"2018 jan. 01. után nem lehet fedélzeti rádió"]
[37,"ATR833A","F.U.N.K.E. AVIONICS GMBH","EASA.21O.193","118-137",null,null,6,"6K00A3EJN","Kommunikáció","Adó-vevő","Beépített"]
[38,"B406-4","ACR","EASA.IM.21O.10039654",null,406.025,null,"0,1/0,1/5","16KOG1D","Vészjeladó","Vészjelző","Mobil",243,"3K20A3X",121.5,"3K20A3X"]
[40,"BAKLAN-20","ELEKTROSIGNAL ZAO","*","118 - 136,975 ",null,null,16,"6K00A3EJN","Kommunikáció","Adó-vevő","Beépített"]
[41,"BAKLAN-5","ELEKTROSIGNAL ZAO","*","118 - 136,975 ",null,null,5,"6K00A3EJN","Kommunikáció","Adó-vevő","Beépített"]
[42,"BXP6401-2-(01)","BECKER","EASA.21O.10038538",null,1090,1030,150,"12M0M1D","Válaszjeladó","Egyéb berendezés","Beépített"]
[43,"BXP6403-1-(12)","BECKER","EASA.21O.717",null,1090,1030,">250 ","12M0M1D","Válaszjeladó","Egyéb berendezés","Beépített"]
[44,"C406-1","ACR/ARTEX","EASA.IM.21O.10039656",null,406.025,null,"0,1/0,1/5","16KOG1D","Vészjeladó","Vészjelző","Mobil",243,"3K20A3X",121.5,"3K20A3X"]
[45,"C406-1 HM","ACR/ARTEX","EASA.IM.21O.416, REV. B",null,406.025,null,"0,1/0,1/5","16KOG1D","Vészjeladó","Vészjelző","Mobil",243,"3K20A3X",121.5,"3K20A3X"]
[46,"C406-2","ACR/ARTEX","EASA.IM.21O.10040703",null,406.025,null,"0,1/0,1/5","16KOG1D","Vészjeladó","Vészjelző","Mobil",243,"3K20A3X",121.5,"3K20A3X"]
[47,"C406-2 HM","ACR/ARTEX","EASA.IM.21O.10040703",null,406.025,null,"0,1/0,1/5","16KOG1D","Vészjeladó","Vészjelző","Mobil",243,"3K20A3X",121.5,"3K20A3X"]
[48,"C406-N","ARTEX","EASA.IM.21O.146, REV. B",null,406.025,null,"0,1/0,1/5","16KOG1D","Vészjeladó","Vészjelző","Mobil",243,"3K20A3X",121.5,"3K20A3X"]
[49,"DME 415","THALES","*","960-1215 MHz",null,null,"100/1000","794KP0NAN","DME távolságmérő","Egyéb berendezés","Beépített",{"$nulls":4},"földi berendezés"]
[50,"DME37B","HONEYWELL","*","960-1215 MHz",null,null,800,"794KP0NAN","DME távolságmérő","Egyéb berendezés","Beépített"]
[51,"DME-42","ROCKWELL COLLINS","*","960-1125 MHz",null,null,300,"1M00F3XXN","Magasságmérő radar","Egyéb berendezés","Beépített"]
[52,"DME-900","ROCKWELL COLLINS","EASA.IM.21O.933","960-1215 MHz",null,null,708,"794KP0NAN","DME távolságmérő","Egyéb berendezés","Beépített"]
[53,"E-04 406 ELT","ACK","EASA.IM.21O.10028407",null,406.037,null,"0,12/5,4","16KOG1D","Vészjeladó","Vészjelző","Mobil",121.5,"3K20A3X"]
[54,"ELT 1000","ACR/ARTEX","EASA.IM.21O.10050368",null,406,null,"0,1/5","16KOG1D","Vészjeladó","Vészjelző","Mobil",243,"3K20A3X",121.5,"3K20A3X"]
[55,"ELT 3000","ARTEX","*",null,406.04,null,"0,1/0,1/5","16KOG1D","Vészjeladó","Vészjelző","Mobil",243,"3K20A3X",121.5,"3K20A3X"]
[56,"ELT 345","ACR","TSO-C126b",null,406.04,null,"0,05/5","16KOG1D","Vészjeladó","Vészjelző","Mobil",121.5,"3K20A3X"]
[57,"ELT 345","ARTEX","*",null,406.04,null,"0,1/5","16KOG1D","Vészjeladó","Vészjelző","Mobil",121.5,"3K20A3X"]
[58,"ELT96","AIR PRECISION","F.O.044",null,406.025,null,"0,1/0,1/5","16KOG1D","Vészjeladó","Vészjelző","Mobil",243,"3K20A3X",121.5,"3K20A3X"]
[59,"ELT96","COBHAM","*",null,406.025,null,"0,1/0,1/5","16KOG1D","Vészjeladó","Vészjelző","Mobil",243,"3K20A3X",121.5,"3K20A3X"]
[60,"ELT97","AIR PRECISION","F.O.046",null,406.025,null,"0,1/0,1/5","16KOG1D","Vészjeladó","Vészjelző","Mobil",243,"3K20A3X",121.5,"3K20A3X"]
[61,"ERT-160","TRT AVIONICS","*",{"$nulls":4},"1M00F3XXN","Magasságmérő radar","Egyéb berendezés","Beépített"]
[62,"ERT-530A","THALES","*","4200 - 4400",null,"4200 - 4400","0,07","1M00F3XXN","Magasságmérő radar","Egyéb berendezés","Beépített"]
[63,"Escort-II","NARCO","*","118 - 136,975 ",{"$nulls":4},"VOR Közelkörzeti rádióirányadó rendszer","Egyéb berendezés","Beépített"]
[64,"FASTFIND 220 PLB","MCMURDO","*",null,406.037,null,"0,05/5","16KOG1D","Vészjeladó","Vészjelző","Mobil",121.5,"3K20A3X"]
[65,"FGS 90 PC","DITTEL","*","118,0-136,0 ",null,null,6,"6K00A3EJN","Kommunikáció","Adó-vevő","Beépített"]
[66,"FSG 2T","F.U.N.K.E. AVIONICS GMBH","EASA.21O.1304, REV. A","118,0-137,0 ",null,null,"5,0","6K00A3EJN","Kommunikáció","Adó-vevő","Beépített",{"$nulls":4},"2018 jan. 01. után nem lehet fedélzeti rádió"]
[67,"FSG 50","F.U.N.K.E. AVIONICS GMBH","EASA.21O.10048027","118 - 136,975 ",null,null,5,"6K00A3EJN","Kommunikáció","Adó-vevő","Beépített",{"$nulls":4},"2018 jan. 01. után nem lehet fedélzeti rádió"]
[68,"FSG 70","F.U.N.K.E. AVIONICS GMBH","EASA.21O.10048029","118 - 136,975 ",null,null,">6 ","6K00A3EJN","Kommunikáció","Adó-vevő","Beépített",{"$nulls":4},"2018 jan. 01. után nem lehet fedélzeti rádió"]
[69,"FTA-230","YAESU","*","118-137",null,null,"5,0","A3E/F3E","Kommunikáció","Adó-vevő","Beépített"]
[70,"FTA-250L","YAESU","*","118 - 136,975 ",null,null,5,"6K00A3EJN","Kommunikáció","Adó-vevő","Beépített"]
[71,"FTA-550AA","YAESU","*","118-137",null,null,"1,5","6K00A3EJN","Kommunikáció","Adó-vevő","Beépített"]
[72,"FTA-550L","YAESU","*","118-137",null,null,"5,0","A3E/F3E","Kommunikáció","Adó-vevő","Beépített"]
[73,"FTA-750L","YAESU","*","118-137",null,null,"5,0","A3E/F3E","Kommunikáció","Adó-vevő","Beépített"]
[74,"GIA 63","GARMIN","EASA.21O.216","118 - 136,992",null,null,10,"6K00A3EJN","Kommunikáció","Adó-vevő","Beépített"]
[75,"GNC-255A","GARMIN","EASA.IM.21O.10043490, REV. A","118 - 136,975 ",null,null,16,"6K00A3EJN","Kommunikáció","Adó-vevő","Beépített"]
[76,"GNS-420","GARMIN","*","118-136,992",null,null,">10 ","6K00A3EJN","Kommunikáció","Adó-vevő","Beépített"]
[77,"GNS-430","GARMIN","EASA.21O.196","118 - 136,975/329,15 - 335,00 ",null,null,">10 ","6K00A3EJN","Kommunikáció","Adó-vevő","Beépített"]
[78,"GNS-530","GARMIN","EASA.IM.21O.440","118 - 136,975/329,15 - 335,00 ",null,null,">10 ","6K00A3EJN","Kommunikáció","Adó-vevő","Beépített"]
[79,"GTN-750","GARMIN","EASA.IM.21O.10055782","118-137",null,null,"5,0","A3E/F3E","Kommunikáció","Adó-vevő","Beépített"]
[80,"GTR 225","GARMIN","EASA.IM.21O.10043488, REV. A","118-136,992",null,null,10,"6K00A3EJN","Kommunikáció","Adó-vevő","Beépített"]
[81,"GTX 320","GARMIN","*",null,1090,1030,150,"12M0M1D","Válaszjeladó","Egyéb berendezés","Beépített"]
[82,"GTX 320A","GARMIN","LBA.N-O.10.930/61 JTSO",null,1090,1030,150,"12M0M1D","Válaszjeladó","Egyéb berendezés","Beépített"]
[83,"GTX 327","GARMIN","LBA.N-O.10.930/57 JTSO",null,1090,1030,200,"12M0M1D","Válaszjeladó","Egyéb berendezés","Beépített"]
[84,"GTX 328","GARMIN","EASA.IM.21O.809",null,1090,1030,250,"12M0M1D","Válaszjeladó","Egyéb berendezés","Beépített"]
[85,"GTX 33","GARMIN","EASA.21O.221",null,1090,1030,250,"12M0M1D","Válaszjeladó","Egyéb berendezés","Beépített"]
[86,"GTX 33 ES","GARMIN","EASA.IM.21O.10055433",null,1090,1030,250,"12M0M1D","Válaszjeladó","Egyéb berendezés","Beépített"]
[87,"GTX 330","GARMIN","EASA.IM.21O.1254",null,1090,1030,250,"12M0M1D","Válaszjeladó","Egyéb berendezés","Beépített"]
[88,"GX60","GARMIN","LBA.N-O.10.985/012 JTSO","118 - 136,975 ",null,"1575,42 (GPS)",8,"6K00A3EJN","Kommunikáció","Adó-vevő","Beépített",{"$nulls":4},"2018 jan. 01. után nem lehet fedélzeti rádió"]
[89,"GX65","GARMIN","LBA.N-O.10.985/013 JTSO","118 - 136,975 ",null,"1575,42 (GPS)",8,"6K00A3EJN","Kommunikáció","Adó-vevő","Beépített",{"$nulls":4},"2018 jan. 01. után nem lehet fedélzeti rádió"]
[90,"HF-9034A","ROCKWELL COLLINS","*","2 - 29,9",null,null,100,"6K00A3EJN","Kommunikáció","Adó-vevő","Beépített"]
[91,"HFS-700","COLLINS","*","2 - 29,9",null,null,"átl:125/400 Wpep","A3H;A3J;A1;A7J;A9J","Kommunikáció","Adó-vevő","Beépített"]
[92,"HFS-900S","ROCKWELL COLLINS","*","2-29,9",null,null,125,"2K50H3EJN/2K15J3EJN/100HA1AAN","Kommunikáció","Adó-vevő","Beépített",{"$nulls":4},"AM 2K50H3EJN/SSB 2K15J3EJN/CW 100HA1AAN"]
[93,"IC-A110","ICOM","*","118 - 136,975 ",null,null,"36,0","6K00A3EJN","Kommunikáció","Adó-vevő","Beépített"]
[94,"IC-A120E","ICOM","*","118 - 136,975 ",null,null,"9,0","6K00A3EJN","Kommunikáció","Adó-vevő","Beépített"]
[95,"IC-A210","ICOM","*","118-136,975/161,65-163,275",121.5,"121,5",6,"6K00A3EJN","Kommunikáció","Adó-vevő","Kézi rádió",{"$nulls":4},"Nincs TSO/ETSO - fedélzeti berendezés nem lehet"]
[96,"IC-A220","ICOM","*","118-136,975",null,null,8,"6K00A3EJN","Kommunikáció","Adó-vevő","Beépített"]
[97,"IC-A3E","ICOM","*","118-137",null,null,5,"6K00A3EJN","Kommunikáció","Adó-vevő","Beépített"]
[98,"IC-A6E","ICOM","*","118-137",null,null,5,"6K00A3EJN","Kommunikáció","Adó-vevő","Kézi rádió",{"$nulls":4},"Nincs TSO/ETSO - fedélzeti berendezés nem lehet"]
[99,"ILS 420","THALES","*","108-112",null,null,25,"32K3A7N","ILS siklópálya adó","Egyéb berendezés","Beépített",{"$nulls":4},"földi berendezés"]
[100,"Integra AP-H","KANNAD","EASA.21O.1265, REV. E",null,406.025,null,"0,1/0,1/5","16KOG1D","Vészjeladó","Vészjelző","Mobil",243,"3K20A3X",121.5,"3K20A3X"]
[101,"JHP-200","JAPAN RADIO CO LTD.","*","118 - 136,975 ",null,null,"1,0","6K00A3EJN","Kommunikáció","Adó-vevő","Beépített"]
[102,"KDM 706A","HONEYWELL","*","1025-1150",null,null,250,"794KP0NAN","DME távolságmérő","Egyéb berendezés","Beépített"]
[103,"KI-266","BENDIXKING","*","960-1215 MHz",9300,9300,null,"794KP0NAN","DME távolságmérő","Egyéb berendezés","Beépített",{"$nulls":4},"Ez csak indikátor, nem távolságmérő!!"]
[104,"KN 62/62A/64","BENDIXKING","*","960-1215 MHz",null,null,100,"794KP0NAN","DME távolságmérő","Egyéb berendezés","Beépített"]
[105,"KN 63","BENDIXKING","*","960-1215 MHz",null,null,100,"794KP0NAN","DME távolságmérő","Egyéb berendezés","Beépített"]
[106,"KN-65","BENDIXKING","*",{"$nulls":5},"Radar","Egyéb berendezés","Beépített"]
[107,"KNS 80","BENDIXKING","*","960-1215 MHz",null,null,100,"794KP0NAN","DME távolságmérő","Egyéb berendezés","Beépített"]
[108,"KR 87","BENDIXKING","*","200 kHz- 1799 kHz",{"$nulls":4},"NDB Útvonal irányadó","Egyéb berendezés","Beépített"]
[109,"KRA-10A","BENDIXKING","*",{"$nulls":4},"1M00F3XXN","Magasságmérő radar","Egyéb berendezés","Beépített"]
[110,"KRA-405A","HONEYWELL","EASA.IM.21O.013, REV. B","4200 - 4400",null,null,"0,16","1M00F3XXN","Magasságmérő radar","Egyéb berendezés","Beépített"]
[111,"KRA-405B","HONEYWELL","EASA.IM.21O.013, REV. B","4200 - 4400",null,null,"0,16","1M00F3XXN","Magasságmérő radar","Egyéb berendezés","Beépített"]
[112,"KRA-407","BENDIXKING","*",{"$nulls":4},"1M00F3XXN","Magasságmérő radar","Egyéb berendezés","Beépített"]
[113,"KRT2","DITTEL AVIONIK","*","118 - 136,975 ",null,null,6,"6K00A3EJN","Kommunikáció","Adó-vevő","Beépített"]
[114,"KRT-2","AIRPLUS","EASA.21O.10038036","118 - 136,975 ",null,null,6,"6K00A3EJN","Kommunikáció","Adó-vevő","Beépített"]
[115,"KRT2S","TQ AVIONICS","EASA.21O.10063547","118 - 136,975 ",null,null,6,"6K00A3EJN","Kommunikáció","Adó-vevő","Beépített"]
[116,"KT-70","BENDIXKING","*",null,1090,1030,200,"12M0M1D","Válaszjeladó","Egyéb berendezés","Beépített"]
[117,"KT-71","BENDIXKING","*",null,1090,1030,200,"12M0M1D","Válaszjeladó","Egyéb berendezés","Beépített"]
[118,"KT-73","HONEYWELL","EASA.21O.063",null,1090,1030,200,"12M0M1D","Válaszjeladó","Egyéb berendezés","Beépített"]
[119,"KT-74","TRIG AVIONICS","EASA.21O.10046583",null,1090,1030,240,"12M0M1D","Válaszjeladó","Egyéb berendezés","Beépített"]
[120,"KT-74A","BENDIXKING","*",null,1090,1030,240,"12M0M1D","Válaszjeladó","Egyéb berendezés","Beépített"]
[121,"KT-76A","BENDIXKING","*",null,1090,1030,200,"12M0M1D","Válaszjeladó","Egyéb berendezés","Beépített"]
[122,"KT-76C","BENDIXKING","*",null,1090,1030,200,"12M0M1D","Válaszjeladó","Egyéb berendezés","Beépített"]
[123,"KT-78 ","BENDIXKING","*",null,1090,1030,null,"12M0M1D","Válaszjeladó","Egyéb berendezés","Beépített"]
[124,"KT-78A","BENDIXKING","*",null,1090,1030,113,"12M0M1D","Válaszjeladó","Egyéb berendezés","Beépített"]
[125,"KT-79","BENDIXKING","*",null,1090,1030,200,"12M0M1D","Válaszjeladó","Egyéb berendezés","Beépített"]
[126,"KTX2","AIRPLUS","EASA.21O.10055186, REV.A",null,1090,1030,250,"12M0M1D","Válaszjeladó","Egyéb berendezés","Beépített"]
[127,"KTX2*","TQ-SYSTEMS","EASA.21O.10062647",null,1090,1030,250,"12M0M1D","Válaszjeladó","Egyéb berendezés","Beépített"]
[128,"KTX2_","DITTEL","*",null,1090,1030,null,"12M0M1D","Válaszjeladó","Egyéb berendezés","Beépített"]
[129,"KTX2_*","DITTEL AVIONIK","*",null,1090,1030,250,"12M0M1D","Válaszjeladó","Egyéb berendezés","Beépített"]
[130,"KWX 56","KING","*",null,"9375",9375,null,"3M00P0NAN","Légijármű-fedélzeti meteorológiai radar","Egyéb berendezés","Beépített"]
[131,"KX 165A","BENDIXKING","LBA.N-O.10.985/02 JTSO","118 - 136,975 ",null,null,10,"6K00A3EJN","Kommunikáció","Adó-vevő","Beépített"]
[132,"KXP-750","BENDIXKING","*",{"$nulls":4},"12M0M1D","Válaszjeladó","Egyéb berendezés","Beépített"]
[133,"KY-196","BENDIXKING","*","118 - 136,975 ",null,null,16,"6K00A3EJN","Kommunikáció","Adó-vevő","Beépített"]
[134,"LRA-900","ROCKWELL COLLINS","EASA.IM.21O.10047790",{"$nulls":4},"1M00F3XXN","Magasságmérő radar","Egyéb berendezés","Beépített"]
[135,"LT-25-100","Ismeretlen","*",{"$nulls":3},25,null,"NDB Útvonal irányadó","Egyéb berendezés","Beépített"]
[136,"ME406 ELT","ARTEX","EASA.IM.21O.416, REV. B",null,406,null,"0,1/5","16KOG1D","Vészjeladó","Vészjelző","Mobil",121.5,"3K20A3X"]
[137,"ME406 HM","ARTEX","EASA.IM.21O.608, REV. B",null,406,null,"0,1/5","16KOG1D","Vészjeladó","Vészjelző","Mobil",121.5,"3K20A3X"]
[138,"ME406 Portable ELT","ARTEX","EASA.IM.21O.743, REV. B",null,406.028,null,"0,1/5","16KOG1D","Vészjeladó","Vészjelző","Mobil",121.5,"3K20A3X"]
[139,"MST 67A","HONEYWELL","EASA.IM.21O.150, REV. A",null,1090,1030,400,"12M0M1D","Válaszjeladó","Egyéb berendezés","Beépített"]
[140,"NAV-4000","COLLINS","*",{"$nulls":5},"Légi navigáció célú eszköz","Egyéb berendezés","Beépített",{"$nulls":4},"VOR/ILS/MKR/ADF Receiver,"]
[141,"NR 200","COLLINS","*",{"$nulls":5},"VOR Közelkörzeti rádióirányadó rendszer","Egyéb berendezés","Beépített"]
[142,"NR5300","BECKER","LBA.O.10.922/94 JTSO",{"$nulls":5},"VOR Közelkörzeti rádióirányadó rendszer","Egyéb berendezés","Beépített",{"$nulls":4},"VOR/ILS"]
[143,"NXT-800","ACSS","EASA.IM.21O.10052537, REV. A",null,1090,1030,400,"12M0M1D","Válaszjeladó","Egyéb berendezés","Beépített"]
[144,"PLB1","OCEAN SIGNAL","*",null,406.037,null,"0,1/5","16KOG1D","Vészjeladó","Vészjelző","Mobil",121.5,"3K20A3X"]
[145,"PLB-375","ACR","*",null,406.037,null,"0,05/5","16K0G1D","Vészjeladó","Vészjelző","Mobil","121,5","3K20A3X"]
[146,"PRIMUS-20 WXD","HONEYWELL","*",null,"9375",9375,7000,"3M00P0NAN","Légijármű-fedélzeti meteorológiai radar","Egyéb berendezés","Beépített"]
[147,"PRIMUS-650","HONEYWELL","*",null,"9375",9375,null,"3M00P0NAN","Légijármű-fedélzeti meteorológiai radar","Egyéb berendezés","Beépített"]
[148,"RCZ-852","ACSS","EASA.IM.21O.10018357",null,1090,1030,null,"12M0M1D","Válaszjeladó","Egyéb berendezés","Beépített"]
[149,"RDR-160","BENDIXKING","*",{"$nulls":5},"Radar","Egyéb berendezés","Beépített"]
[150,"RDR-2000","BENDIXKING","*",null,"9375",9375,4000,"3M00P0NAN","Légijármű-fedélzeti meteorológiai radar","Egyéb berendezés","Beépített"]
[151,"RDR-4000","HONEYWELL","EASA.IM.21O.10052390",null,"9375",9375,null,"3M00P0NAN","Légijármű-fedélzeti meteorológiai radar","Egyéb berendezés","Beépített"]
[152,"RESCU 406","HONEYWELL","EASA.IM.21O.1147",null,406.025,null,"0,14/0,14/5","16KOG1D","Vészjeladó","Vészjelző","Mobil",243,"3K20A3X",121.5,"3K20A3X"]
[153,"RESCU 406 AFN","HONEYWELL","EASA.IM.21O.724, REV. A",null,406.025,null,"0,15/0,15/5","16KOG1D","Vészjeladó","Vészjelző","Mobil",243,"3K20A3X",121.5,"3K20A3X"]
[154,"RESCU 406 AFN2","HONEYWELL","EASA.IM.21O.724, REV. A",null,{"v":406.04,"d":"406"},null,"5/0,15","16KOG1D","Vészjeladó","Vészjelző","Mobil",121.5,"3K20A3X"]
[155,"Rescu 406 SE","HONEYWELL","EASA.IM.21O.1147",null,406.025,null,"0,14/0,14/5","16KOG1D","Vészjeladó","Vészjelző","Mobil",243,"3K20A3X",121.5,"3K20A3X"]
[156,"RT-328T","CESSNA ARC","*","118 - 135 ",{"$nulls":3},"16K0A3X","Navigációs feladatokat ellátó és támogató rendszer","Egyéb berendezés","Beépített"]
[157,"RT-359A","CESSNA ARC","*",null,1090,1030,125,"12M0M1D","Válaszjeladó","Egyéb berendezés","Beépített"]
[158,"RT-459","CESSNA ARC","*",null,1090,1030,200,"12M0M1D","Válaszjeladó","Egyéb berendezés","Beépített"]
[159,"RT-459A","CESSNA ARC","*",null,1090,1030,200,"12M0M1D","Válaszjeladó","Egyéb berendezés","Beépített"]
[160,"RT-859A","ISMERETLEN","*",null,1090,1030,250,"12M0M1D","Válaszjeladó","Egyéb berendezés","Beépített"]
[161,"RT-910","ACSS","LBA.N-O.10.940/08 JTSO",null,1090,1030,null,"200KV1DAN","ACAS/TCAS rendszer","Egyéb berendezés","Beépített"]
[162,"RT-950","ACSS","EASA.IM.21O.1171, REV. A",null,1090,1030,250,"200KV1DAN","ACAS/TCAS rendszer","Egyéb berendezés","Beépített"]
[163,"RTA-44D","HONEYWELL","LBA.N-O.10.911/105 JTSO","118 - 136,975 ",null,null,25,"6K00A3EJN","Kommunikáció","Adó-vevő","Beépített"]
[164,"RTA-4B","HONEYWELL","EASA.21O.120, REV. A",null,"9375",9375,">125","3M00P0NAN","Légijármű-fedélzeti meteorológiai radar","Egyéb berendezés","Beépített"]
[165,"RTA-50D","HONEYWELL","EASA.IM.21O.10040698","118 - 136,975 ",null,null,25,"6K00A3EJN","Kommunikáció","Adó-vevő","Beépített"]
[166,"RV-5","Ismeretlen","*",null,4300,4300,200,"1M00F3XXN","Magasságmérő radar","Egyéb berendezés","Beépített"]
[167,"SRB-406 ELT","ASTRONICS","LBA.N-O.10.915/026JTSO",null,406.028,null,"5/0,4/0,4","16KOG1D","Vészjeladó","Vészjelző","Mobil",243,"3K20A3X",121.5,"3K20A3X"]
[168,"SV-XPNDR-262","DYNON AVIONICS","*",null,1090,1030,250,"12M0M1D","Válaszjeladó","Egyéb berendezés","Beépített"]
[169,"SV-XPNDR-26X","DYNON AVIONICS","*",null,1090,1030,250,"12M0M1D","Válaszjeladó","Egyéb berendezés","Beépített"]
[170,"T-2000","MICROAIR AVIONICS","*",null,1090,1030,200,"12M0M1D","Válaszjeladó","Egyéb berendezés","Beépített"]
[171,"T2000SFL","MICROAIR AVIONICS","*",null,1090,1030,200,"12M0M1D","Válaszjeladó","Egyéb berendezés","Beépített"]
[172,"TAS 610","AVIDYNE","TSO-C147",null,1030,1090,null,"200KV1DAN","ACAS/TCAS rendszer","Egyéb berendezés","Beépített",{"$nulls":4},"A freki szerintem fordított."]
[173,"TCAS RT-951","ACSS","EASA.IM.21O.1171, REV. A",null,1090,1030,null,"200KV1DAN","ACAS/TCAS rendszer","Egyéb berendezés","Beépített"]
[174,"TCAS-2000","ACSS","EASA.IM.21O.10034316, REV. A",null,1090,1030,null,"200KV1DAN","ACARS Unilink","Egyéb berendezés","Beépített"]
[175,"TCR-451 DME","COLLINS","TSO-C66A","960-1215 MHz",null,null,100,"794KP0NAN","DME távolságmérő","Egyéb berendezés","Beépített"]
[176,"TDR-94D","ROCKWELL COLLINS","EASA.21O.280, REV. C",null,1090,1030,100,"12M0M1D","Válaszjeladó","Egyéb berendezés","Beépített"]
[177,"TDR-950","ROCKWELL COLLINS","TSO-C74C",null,1090,1030,250,"12M0M1D","Válaszjeladó","Egyéb berendezés","Beépített"]
[178,"TPA-100A","HONEYWELL","EASA.IM.21O.343",null,1090,1030,400,"200KV1DAN","ACAS/TCAS rendszer","Egyéb berendezés","Beépített"]
[179,"TPA-100B","HONEYWELL","EASA.IM.21O.10036227, REV. A",null,1090,1030,null,"200KV1DAN","ACAS/TCAS rendszer","Egyéb berendezés","Beépített"]
[180,"TPR-901","ROCKWELL COLLINS","LBA.N-O.10.930/59 JTSO",null,1090,1030,null,"12M0M1D","Válaszjeladó","Egyéb berendezés","Beépített"]
[181,"TPU-67B","HONEYWELL","EASA.IM.21O.10050750",null,1090,1030,null,"200KV1DAN","ACAS/TCAS rendszer","Egyéb berendezés","Beépített"]
[182,"TR-611","BENDIXKING","TSO-C74A",{"$nulls":5},"Légtér ellenőrző radar","Egyéb berendezés","Beépített"]
[183,"TR-661A","BENDIX","TSO-C74C",null,"1090",1030,null,"12M0M1D","Válaszjeladó","Egyéb berendezés","Beépített"]
[184,"TR-661A","BENDIXKING","TSO-C74C",null,1090,1030,null,"12M0M1D","Válaszjeladó","Egyéb berendezés","Beépített"]
[185,"TR-866A","HONEYWELL","EASA.IM.21O.457","118-152",{"$nulls":3},"6K00A3EJN","Kommunikáció","Adó-vevő","Beépített"]
[186,"TR-866B","HONEYWELL","EASA.21O.275","118-152",{"$nulls":3},"6K00A3EJN","Kommunikáció","Adó-vevő","Beépített"]
[187,"TRA-67A","HONEYWELL","LBA.N-O.10.930/070JTSO",null,1090,1030,400,"12M0M1D","Válaszjeladó","Egyéb berendezés","Beépített"]
[188,"TRC899","L3 COMMUNICATIONS","LBA.O.10.941/002NTSO",null,1090,1030,null,"200KV1DAN","ACAS/TCAS rendszer","Egyéb berendezés","Beépített"]
[189,"TRS 42A","BENDIXKING - HONEYWELL","*",null,1090,1030,null,"12M0M1D","Válaszjeladó","Egyéb berendezés","Beépített"]
[190,"TRT-250","TERRA","TSO-C74C",null,1090,1030,200,"12M0M1D","Válaszjeladó","Egyéb berendezés","Beépített"]
[191,"TRT600","FILSER ELECTRONIC GMBH","*",null,1090,1030,null,"12M0M1D","Válaszjeladó","Egyéb berendezés","Beépített"]
[192,"TRT600_","FUNKWERK AVIONICS","*",null,1090,1030,null,"12M0M1D","Válaszjeladó","Egyéb berendezés","Beépített"]
[193,"TRT800","FILSER ELECTRONIC GMBH","*",null,1090,1030,">71 ","12M0M1D","Válaszjeladó","Egyéb berendezés","Beépített"]
[194,"TRT800A","F.U.N.K.E. AVIONICS GMBH","EASA.21O.268",null,1090,1030,126,"12M0M1D","Válaszjeladó","Egyéb berendezés","Beépített"]
[195,"TRT800H ","F.U.N.K.E. AVIONICS GMBH","EASA.21O.269",null,1090,1030,126,"12M0M1D","Válaszjeladó","Egyéb berendezés","Beépített"]
[196,"TT21","TRIG-AVIONICS","EASA.21O.10034900",null,1090,1030,240,"12M0M1D","Válaszjeladó","Egyéb berendezés","Beépített"]
[197,"TT31","TRIG-AVIONICS","EASA.21O.643, REV. B",null,1090,1030,240,"12M0M1D","Válaszjeladó","Egyéb berendezés","Beépített"]
[198,"TTR-920","ROCKWELL COLLINS","*",null,1090,1030,400,"200KV1DAN","ACAS/TCAS rendszer","Egyéb berendezés","Beépített"]
[199,"TTR-921","ROCKWELL COLLINS","EASA.IM.21O.10036359",null,1090,1030,400,"200KV1DAN","ACAS/TCAS rendszer","Egyéb berendezés","Beépített"]
[200,"TY91","TRIG-AVIONICS","EASA.21O.10042695, REV. B","118-136,975",null,null,">6","6K00A3EJN","Kommunikáció","Adó-vevő","Beépített"]
[201,"TY96","TRIG-AVIONICS","EASA.21O.10058724, REV. A","118-136,975",121.5,121.5,10,"6K00A3EJN","Kommunikáció","Adó-vevő","Beépített"]
[202,"TY97","TRIG-AVIONICS","EASA.21O.10058724, REV. A","118-136,975",121.5,121.5,16,"6K00A3EJN","Kommunikáció","Adó-vevő","Beépített"]
[203,"V6 COM","MGL AVIONICS","*","118 - 136,975 ",null,null,6,"6K00A3EJN","Kommunikáció","Adó-vevő","Beépített"]
[204,"VHF-22C","ROCKWELL COLLINS","*","117-136,992",null,null,20,"6K00A3EJN","Kommunikáció","Adó-vevő","Beépített"]
[205,"VHF-22D","ROCKWELL COLLINS","*","117-151,975",null,null,20,"6K00A3EJN","Kommunikáció","Adó-vevő","Beépített"]
[206,"VHF-4000E","COLLINS","EASA.IM.21O.492","117-136,992",null,null,20,"6K00A3EJN","Kommunikáció","Adó-vevő","Beépített"]
[207,"VHF-700B","ROCKWELL COLLINS","*","118 - 137,975 ",null,null,25,"6K00A3EJN","Kommunikáció","Adó-vevő","Beépített"]
[208,"VHF-900B","ROCKWELL COLLINS","*","118 - 137,975 ",null,null,25,"6K00A3EJN","Kommunikáció","Adó-vevő","Beépített"]
[209,"VT-01","GARRECHT AVIONIK","EASA.21O.384, REV. A",null,1090,1030,250,"12M0M1D","Válaszjeladó","Egyéb berendezés","Beépített"]
[210,"VT-02","GARRECHT AVIONIK","EASA.21O.705",null,1090,1030,300,"12M0M1D","Válaszjeladó","Egyéb berendezés","Beépített"]
[211,"VT-2000","GARRECHT AVIONIK","*",null,1090,1030,250,"12M0M1D","Válaszjeladó","Egyéb berendezés","Beépített"]
[212,"VXA-300","VERTEX STANDARD","*","118 - 136,975 ",null,null,"5,0","6K00A3EJN","Kommunikáció","Adó-vevő","Beépített"]
[213,"WRT-701X","ROCKWELL COLLINS","TSO-C63C",null,"9375",9375,null,"3M00P0NAN","Légijármű-fedélzeti meteorológiai radar","Egyéb berendezés","Beépített"]
[214,"WU-880","HONEYWELL","*",null,"9375",9375,"10000","3M00P0NAN","Légijármű-fedélzeti meteorológiai radar","Egyéb berendezés","Beépített"]
[215,"WXR-700","ROCKWELL COLLINS","*",null,"9375",9375,150,"3M00P0NAN","Légijármű-fedélzeti meteorológiai radar","Egyéb berendezés","Beépített"]
[216,"WXT-250","ROCKWELL COLLINS","*",null,9345,null,5000,null,"Radar","Egyéb berendezés","Beépített"]
[217,"WXT-250B","ROCKWELL COLLINS","*",null,9345,null,5000,null,"Radar","Egyéb berendezés","Beépített"]
[218,"XK516D1 HF","ROHDE & SCHWARZ","LBA.O.10.914/24 JTSO","2 -29.999",null,null,"400","A1","Kommunikáció","Adó-vevő","Beépített"]
[219,"XS 850","HONEYWELL","EASA.IM.21O.10028290",null,1090,1030,null,"12M0M1D","Válaszjeladó","Egyéb berendezés","Beépített"]
[220,"XS-857A","HONEYWELL","EASA.21O.006",null,1090,1030,200,"12M0M1D","Válaszjeladó","Egyéb berendezés","Beépített"]
[221,"XS-858","HONEYWELL","EASA.IM.21O.10041599, REV. A",null,"1090",1030,null,"12M0M1D","Válaszjeladó","Egyéb berendezés","Beépített"]
[222,"XS-950","ACSS","EASA.IM.21O.341, REV. A",null,1090,1030,null,"12M0M1D","Válaszjeladó","Egyéb berendezés","Beépített"]
[223,"XU251","ROHDE & SCHWARZ","*","118 - 144\n225-400",null,null,50,"6K00A3EJN","Kommunikáció","adó-vevő","Beépített"]